Workbook

Sheet _@RISKFitInformation (hidden)
A1: Created By Version | B1: 8.9.0
A2: Required Version | B2: 5.0.0
A3: Recommended Version | B3: 6.0.0
A4: Modified By Version | B4: 8.9.0
A9: Count | B9: 26
A10: GUID | B10: Name | C10: Range | D10: CRC | E10: Options | F10: Comp. Graph Serialization | G10: PP Graph Serialization | H10: QQ Graph Serialization | I10: Unsued | J10: Fixed Params | K10: Bootstrap Options | L10: BootstrapParamGraphSerialization | M10: BatchFit Options | N10: BootstrapGOFGraphSerialization | O10: FitSelector
A11: FIT_D3E64_41710 | B11: Dataset 1 | C11: =#REF! ->  | D11: 0 | E11: F1 0 0 -1E+300 1E+300 1 0 0 0 0 1 25 BetaGeneral Binomial Expon ExtValue Gamma Geomet IntUniform InvGauss Logistic LogLogistic Lognorm NegBin Normal Pareto Pearson5 Pearson6 Pert Poisson Triang Uniform Weibull ExtValueMin Laplace Levy Kumaraswamy 0 1 -1 1 0 1 0 0 0 | F11: GF1_rK0qDwEAEwClAQwjACcANQCRAKUApgC0AMIAfwGhAZsBKwD//wAABQAAAAEEAAAAAAAAAAABHEZpdCBDb21wYXJpc29uIGZvciBEYXRhc2V0IDEBOlJpc2tOb3JtYWwoMC4xMTUyMDAsMC4wNjEwODQpDQpSaXNrUGFyZXRvKDEuNjYyNywwLjA1NjAwMCkBARAAAgABClN0YXRpc3RpY3MDAQEA/wEBAQEBAAEBAQAEAAAAAQEBAQEAAQEBAAQAAAAK4QAB9QAACgEAGwEAKwEAOgEATQEAXgEAaQEAdAEAEgAFSW5wdXQAAAD/AAD/AQEAAgATAAZOb3JtYWwAAQD/3BQ8AQAAAgAPAAZQYXJldG8AAk8BAAACAA4ABUV4cG9uAAOMAQAAAgANAARMZXZ5AARMAQAAAgARAAhFeHRWYWx1ZQAFOQEAAAIADwAGTm9ybWFsAAZOAQAAAgAJAAAAByMBAAACAAkAAAAIKQEAAAIACQAAAAlgAQAAAgCHAZEBAQEDAZqZmZmZmak/AABmZmZmZmbuPwAABQABAQEAAQEBAA== | G11: GF1_jYW3AgEAEwBOAQwjAAAAMQBgAHAAcQCMAKgAAAAAAAAAJwD//wAAAQQAAAAAAAAAAAEpUHJvYmFiaWxpdHktUHJvYmFiaWxpdHkgUGxvdCBvZiBEYXRhc2V0IDEBAAEBDAABAAEGTGVnZW5kAwABAP8BAQEBAQ1JbnB1dCBQLVZhbHVlAQEBAAQAAAABAQEBAQ5GaXR0ZWQgUC1WYWx1ZQEBAQAEAAAACscAB9kAB+gAB/gABwYBBxMBByQBBzMBBzwBB0UBBxIACVJlZmVyZW5jZQAAIwEAAA8ABlBhcmV0bwABLwEAABAAB1VuaWZvcm0AAiUBAAAOAAVFeHBvbgADTwEAAA0ABExldnkABIwBAAARAAhFeHRWYWx1ZQAFTAEAAA8ABk5vcm1hbAAGOQEAAAkAAAAHTgEAAAkAAAAIKQEAAAkAAAAJYAEAAA== | H11: GF1_jYW3AgEAEwCDAQwjAAAAMQCUAKQApQDBAN4AAAAAAAAAJwD//wAAAQQAAAAAAAAAAAEjUXVhbnRpbGUtUXVhbnRpbGUgUGxvdCBvZiBEYXRhc2V0IDEBOlJpc2tOb3JtYWwoMC4xMTUyMDAsMC4wNjEwODQpDQpSaXNrUGFyZXRvKDEuNjYyNywwLjA1NjAwMCkBAQwAAQABBkxlZ2VuZAMAAQD/AQEBAQEOSW5wdXQgUXVhbnRpbGUBAQEABAAAAAEBAQEBD0ZpdHRlZCBRdWFudGlsZQEBAQAEAAAACv0ABw8BBx4BBy0BBzsBB0gBB1kBB2gBB3EBB3oBBxIACVJlZmVyZW5jZQAAIwEAAA8ABk5vcm1hbAABLwEAAA8ABlBhcmV0bwACJQEAAA4ABUV4cG9uAANPAQAADQAETGV2eQAEjAEAABEACEV4dFZhbHVlAAVMAQAADwAGTm9ybWFsAAY5AQAACQAAAAdOAQAACQAAAAgpAQAACQAAAAlgAQAA | J11: 0 8 | K11: F1 FALSE 1000 .95 | O11: 4 | P11: TRUE
A12: FIT_CBEAB_BBA5E | B12: Dataset 2 | C12: =#REF! ->  | D12: 0 | E12: F1 0 0 -1E+300 1E+300 1 0 0 0 0 1 25 BetaGeneral Binomial Expon ExtValue Gamma Geomet IntUniform InvGauss Logistic LogLogistic Lognorm NegBin Normal Pareto Pearson5 Pearson6 Pert Poisson Triang Uniform Weibull ExtValueMin Laplace Levy Kumaraswamy 0 1 -1 1 0 1 0 0 0 | J12: 0 8 | K12: F1 FALSE 1000 .95 | O12: 4 | P12: TRUE
A13: FIT_7C6A9_384D5 | B13: Dataset 3 | C13: =#REF! ->  | D13: 0 | E13: F1 0 0 -1E+300 1E+300 1 0 0 0 0 1 25 BetaGeneral Binomial Expon ExtValue Gamma Geomet IntUniform InvGauss Logistic LogLogistic Lognorm NegBin Normal Pareto Pearson5 Pearson6 Pert Poisson Triang Uniform Weibull ExtValueMin Laplace Levy Kumaraswamy 0 1 -1 1 0 1 0 0 0 | F13: GF1_rK0qDwEAEwBpAQwjACcANQByAIYAhwCVAKMAQwFlAV8BKwD//wAAAAAAAAEEAAAAAAAAAAABHEZpdCBDb21wYXJpc29uIGZvciBEYXRhc2V0IDMBG1Jpc2tQYXJldG8oMS42NjI3LDAuMDU2MDAwKQEBEAACAAEKU3RhdGlzdGljcwMBAQD/AQEBAQEAAQEBAAQAAAABAQEBAQABAQEABAAAAArCAAHWAADrAAD2AAABAQAMAQAXAQAiAQAtAQA4AQASAAVJbnB1dAAAAP8AAP8BAQACABMABlBhcmV0bwABAP/cFDwBAAACAAkAAAACTwEAAAIACQAAAAOMAQAAAgAJAAAABEwBAAACAAkAAAAFOQEAAAIACQAAAAZOAQAAAgAJAAAAByMBAAACAAkAAAAIKQEAAAIACQAAAAlgAQAAAgBLAVUBAQEDAZqZmZmZmak/AABmZmZmZmbuPwAABQABAQEAAQEBAA== | J13: 0 8 | K13: F1 FALSE 1000 .95 | O13: 4 | P13: TRUE
A14: FIT_27052_82218 | B14: Line outage -fault | C14: =#REF! ->  | D14: 0 | E14: F1 0 0 -1E+300 1E+300 1 0 0 0 0 1 27 BetaGeneral Binomial Expon ExtValue Gamma Geomet IntUniform InvGauss Logistic LogLogistic Lognorm NegBin Normal Pareto Pearson5 Pearson6 Pert Poisson Rayleigh Triang Uniform Weibull ExtValueMin Laplace Levy Kumaraswamy Cauchy 0 1 -1 1 0 1 0 0 0 | F14: GF1_rK0qDwEAEwB6AQwjACcANQB7AI8AkACeAKwAVAF2AXABKwD//wAAAAAAAAEEAAAAAAAAAAABJUZpdCBDb21wYXJpc29uIGZvciBMaW5lIG91dGFnZSAtZmF1bHQBG1Jpc2tMZXZ5KDAuMDUwMjM1LDAuMDEwNTY2KQEBEAACAAEKU3RhdGlzdGljcwMBAQD/AQEBAQEAAQEBAAQAAAABAQEBAQABAQEABAAAAArLAAHfAADyAAABAQASAQAdAQAoAQAzAQA+AQBJAQASAAVJbnB1dAAAAP8AAP8BAQACABEABExldnkAAQD/3BQ8AQAAAgANAARMZXZ5AAJPAQAAAgAPAAZOb3JtYWwAA4wBAAACAAkAAAAETAEAAAIACQAAAAU5AQAAAgAJAAAABk4BAAACAAkAAAAHIwEAAAIACQAAAAgpAQAAAgAJAAAACWABAAACAFwBZgEBAQMBmpmZmZmZqT8AAGZmZmZmZu4/AAAFAAEBAQABAQEA | J14: 0 8 | K14: F1 FALSE 1000 .95 | O14: 2 | P14: TRUE
A15: FIT_96FDD_A7220 | B15: Dataset 5 | C15: =#REF! ->  | D15: 0 | E15: F1 0 0 -1E+300 1E+300 1 0 0 0 0 1 25 BetaGeneral Binomial Expon ExtValue Gamma Geomet IntUniform InvGauss Logistic LogLogistic Lognorm NegBin Normal Pareto Pearson5 Pearson6 Pert Poisson Triang Uniform Weibull ExtValueMin Laplace Levy Kumaraswamy 0 1 -1 1 0 1 0 0 0 | F15: GF1_rK0qDwEAEwDBAQwjACcANQC9ANEA0gDgAO4AmwG9AbcBKwD//wAAAAAAAAEEAAAAAAAAAAABHEZpdCBDb21wYXJpc29uIGZvciBEYXRhc2V0IDUBZlJpc2tJbnZHYXVzcygwLjA3NDE5MCwwLjA2MDU2OSxSaXNrU2hpZnQoMC4wMzU4OTUpKQ0KUmlza0JldGFHZW5lcmFsKDAuMTQ3NTksMC4xNTc3MiwwLjA0ODAwMCwwLjE5ODQxKQEBEAACAAEKU3RhdGlzdGljcwMBAQD/AQEBAQEAAQEBAAQAAAABAQEBAQABAQEABAAAAAoNAQEhAQA4AQBOAQBZAQBkAQBvAQB6AQCFAQCQAQASAAVJbnB1dAAAAP8AAP8BAQACABUACEludkdhdXNzAAEA/9wUPAEAAAIAFAALQmV0YUdlbmVyYWwAAk8BAAACAAkAAAADjAEAAAIACQAAAARMAQAAAgAJAAAABTkBAAACAAkAAAAGTgEAAAIACQAAAAcjAQAAAgAJAAAACCkBAAACAAkAAAAJYAEAAAIAowGtAQEBAwGamZmZmZmpPwAAZmZmZmZm7j8AAAUAAQEBAAEBAQA= | J15: 0 8 | K15: F1 FALSE 1000 .95 | O15: 1 | P15: TRUE
A16: FIT_AC751_660CC | B16: Dataset 6 | C16: =#REF! ->  | D16: 0 | E16: F1 0 0 -1E+300 1E+300 1 0 0 0 0 1 25 BetaGeneral Binomial Expon ExtValue Gamma Geomet IntUniform InvGauss Logistic LogLogistic Lognorm NegBin Normal Pareto Pearson5 Pearson6 Pert Poisson Triang Uniform Weibull ExtValueMin Laplace Levy Kumaraswamy 0 1 -1 1 0 1 0 0 0 | F16: GF1_rK0qDwEAEwBpAQwjACcANQByAIYAhwCVAKMAQwFlAV8BKwD//wAAAAAAAAEEAAAAAAAAAAABHEZpdCBDb21wYXJpc29uIGZvciBEYXRhc2V0IDYBG1Jpc2tQYXJldG8oMS42NjI3LDAuMDU2MDAwKQEBEAACAAEKU3RhdGlzdGljcwMBAQD/AQEBAQEAAQEBAAQAAAABAQEBAQABAQEABAAAAArCAAHWAADrAAD2AAABAQAMAQAXAQAiAQAtAQA4AQASAAVJbnB1dAAAAP8AAP8BAQACABMABlBhcmV0bwABAP/cFDwBAAACAAkAAAACTwEAAAIACQAAAAOMAQAAAgAJAAAABEwBAAACAAkAAAAFOQEAAAIACQAAAAZOAQAAAgAJAAAAByMBAAACAAkAAAAIKQEAAAIACQAAAAlgAQAAAgBLAVUBAQEDAZqZmZmZmak/AABmZmZmZmbuPwAABQABAQEAAQEBAA== | J16: 0 8 | K16: F1 TRUE 1000 .95 | O16: 4 | P16: TRUE
A17: FIT_C6E21_90300 | B17: Dataset 7 | C17: =#REF! ->  | D17: 0 | E17: F1 0 0 -1E+300 1E+300 1 0 0 0 0 1 25 BetaGeneral Binomial Expon ExtValue Gamma Geomet IntUniform InvGauss Logistic LogLogistic Lognorm NegBin Normal Pareto Pearson5 Pearson6 Pert Poisson Triang Uniform Weibull ExtValueMin Laplace Levy Kumaraswamy 0 1 -1 1 0 1 0 0 0 | F17: GF1_rK0qDwEAEwBuAQwjACcANQB2AIoAiwCZAKcASAFqAWQBKwD//wAAAAAAAAEEAAAAAAAAAAABHEZpdCBDb21wYXJpc29uIGZvciBEYXRhc2V0IDcBH1Jpc2tVbmlmb3JtKC0wLjAwNDI1NDcsMC4yNzEyNykBARAAAgABClN0YXRpc3RpY3MDAQEA/wEBAQEBAAEBAQAEAAAAAQEBAQEAAQEBAAQAAAAKxgAB2gAA8AAA+wAABgEAEQEAHAEAJwEAMgEAPQEAEgAFSW5wdXQAAAD/AAD/AQEAAgAUAAdVbmlmb3JtAAEA/9wUPAEAAAIACQAAAAJPAQAAAgAJAAAAA4wBAAACAAkAAAAETAEAAAIACQAAAAU5AQAAAgAJAAAABk4BAAACAAkAAAAHIwEAAAIACQAAAAgpAQAAAgAJAAAACWABAAACAFABWgEBAQMBmpmZmZmZqT8AAGZmZmZmZu4/AAAFAAEBAQABAQEA | J17: 0 8 | K17: F1 FALSE 1000 .95 | O17: 1 | P17: TRUE
A18: FIT_D6CC8_17FD9 | B18: Dataset 8 | C18: =#REF! ->  | D18: 0 | E18: F1 0 0 -1E+300 1E+300 1 0 0 0 0 1 25 BetaGeneral Binomial Expon ExtValue Gamma Geomet IntUniform InvGauss Logistic LogLogistic Lognorm NegBin Normal Pareto Pearson5 Pearson6 Pert Poisson Triang Uniform Weibull ExtValueMin Laplace Levy Kumaraswamy 0 1 -1 1 0 1 0 0 0 | F18: GF1_rK0qDwEAEwCLAQwjACcANQCNAKEAogCwAL4AZQGHAYEBKwD//wAAAAAAAAEEAAAAAAAAAAABHEZpdCBDb21wYXJpc29uIGZvciBEYXRhc2V0IDgBNlJpc2tJbnZHYXVzcygwLjA4MjI3MSwwLjAzMjY5MixSaXNrU2hpZnQoOS4zOTkyMWUtMDUpKQEBEAACAAEKU3RhdGlzdGljcwMBAQD/AQEBAQEAAQEBAAQAAAABAQEBAQABAQEABAAAAArdAAHxAAAIAQAYAQAjAQAuAQA5AQBEAQBPAQBaAQASAAVJbnB1dAAAAP8AAP8BAQACABUACEludkdhdXNzAAEA/9wUPAEAAAIADgAFRXhwb24AAk8BAAACAAkAAAADjAEAAAIACQAAAARMAQAAAgAJAAAABTkBAAACAAkAAAAGTgEAAAIACQAAAAcjAQAAAgAJAAAACCkBAAACAAkAAAAJYAEAAAIAbQF3AQEBAwGamZmZmZmpPwAAZmZmZmZm7j8AAAUAAQEBAAEBAQA= | J18: 0 8 | K18: F1 FALSE 1000 .95 | O18: 1 | P18: TRUE
A19: FIT_5AD58_31040 | B19: Dataset 9 | C19: =#REF! ->  | D19: 0 | E19: F1 0 0 -1E+300 1E+300 1 0 0 0 0 1 25 BetaGeneral Binomial Expon ExtValue Gamma Geomet IntUniform InvGauss Logistic LogLogistic Lognorm NegBin Normal Pareto Pearson5 Pearson6 Pert Poisson Triang Uniform Weibull ExtValueMin Laplace Levy Kumaraswamy 0 1 -1 1 0 1 0 0 0 | F19: GF1_rK0qDwEAEwByAQwjACcANQB0AIgAiQCXAKUATAFuAWgBKwD//wAAAAAAAAEEAAAAAAAAAAABHEZpdCBDb21wYXJpc29uIGZvciBEYXRhc2V0IDkBHVJpc2tOb3JtYWwoMC4wOTI4MjIsMC4wMzI5MTcpAQEQAAIAAQpTdGF0aXN0aWNzAwEBAP8BAQEBAQABAQEABAAAAAEBAQEBAAEBAQAEAAAACsQAAdgAAO0AAP8AAAoBABUBACABACsBADYBAEEBABIABUlucHV0AAAA/wAA/wEBAAIAEwAGTm9ybWFsAAEA/9wUPAEAAAIAEAAHVW5pZm9ybQACTwEAAAIACQAAAAOMAQAAAgAJAAAABEwBAAACAAkAAAAFOQEAAAIACQAAAAZOAQAAAgAJAAAAByMBAAACAAkAAAAIKQEAAAIACQAAAAlgAQAAAgBUAV4BAQEDAZqZmZmZmak/AABmZmZmZmbuPwAABQABAQEAAQEBAA== | J19: 0 8 | K19: F1 FALSE 1000 .95 | O19: 1 | P19: TRUE
A20: FIT_7E430_9D9B7 | B20: Dataset 10 | C20: =#REF! ->  | D20: 0 | E20: F1 0 0 -1E+300 1E+300 1 0 0 0 0 1 25 BetaGeneral Binomial Expon ExtValue Gamma Geomet IntUniform InvGauss Logistic LogLogistic Lognorm NegBin Normal Pareto Pearson5 Pearson6 Pert Poisson Triang Uniform Weibull ExtValueMin Laplace Levy Kumaraswamy 0 1 -1 1 0 1 0 0 0 | F20: GF1_rK0qDwEAEwCEAQwjACcANQCLAJ8AoACuALwAXgGAAXoBKwD//wAAAAAAAAEEAAAAAAAAAAABHUZpdCBDb21wYXJpc29uIGZvciBEYXRhc2V0IDEwATNSaXNrSW52R2F1c3MoMC4wNTkyMjMsMC4wMzQ2MDgsUmlza1NoaWZ0KDAuMDMzMTMyKSkBARAAAgABClN0YXRpc3RpY3MDAQEA/wEBAQEBAAEBAQAEAAAAAQEBAQEAAQEBAAQAAAAK2wAB7wAABgEAEQEAHAEAJwEAMgEAPQEASAEAUwEAEgAFSW5wdXQAAAD/AAD/AQEAAgAVAAhJbnZHYXVzcwABAP/cFDwBAAACAAkAAAACTwEAAAIACQAAAAOMAQAAAgAJAAAABEwBAAACAAkAAAAFOQEAAAIACQAAAAZOAQAAAgAJAAAAByMBAAACAAkAAAAIKQEAAAIACQAAAAlgAQAAAgBmAXABAQEDAZqZmZmZmak/AABmZmZmZmbuPwAABQABAQEAAQEBAA== | J20: 0 8 | K20: F1 FALSE 1000 .95 | O20: 1 | P20: TRUE
A21: FIT_B1854_4D09 | B21: Dataset 11 | C21: =#REF! ->  | D21: 0 | E21: F1 0 0 -1E+300 1E+300 1 0 0 0 0 1 25 BetaGeneral Binomial Expon ExtValue Gamma Geomet IntUniform InvGauss Logistic LogLogistic Lognorm NegBin Normal Pareto Pearson5 Pearson6 Pert Poisson Triang Uniform Weibull ExtValueMin Laplace Levy Kumaraswamy 0 1 -1 1 0 1 0 0 0 | F21: GF1_rK0qDwEAEwBsAQwjACcANQBwAIQAhQCTAKEARgFoAWIBKwD//wAAAAAAAAEEAAAAAAAAAAABHUZpdCBDb21wYXJpc29uIGZvciBEYXRhc2V0IDExARhSaXNrTGV2eSgzNi4yNzY1LDIuNzI3NCkBARAAAgABClN0YXRpc3RpY3MDAQEA/wEBAQEBAAEBAQAEAAAAAQEBAQEAAQEBAAQAAAAKwAAB1AAA5wAA+QAABAEADwEAGgEAJQEAMAEAOwEAEgAFSW5wdXQAAAD/AAD/AQEAAgARAARMZXZ5AAEA/9wUPAEAAAIAEAAHTGFwbGFjZQACTwEAAAIACQAAAAOMAQAAAgAJAAAABEwBAAACAAkAAAAFOQEAAAIACQAAAAZOAQAAAgAJAAAAByMBAAACAAkAAAAIKQEAAAIACQAAAAlgAQAAAgBOAVgBAQEDAZqZmZmZmak/AABmZmZmZmbuPwAABQABAQEAAQEBAA== | J21: 0 8 | K21: F1 FALSE 1000 .95 | O21: 1 | P21: TRUE
A22: FIT_48DAC_551A3 | B22: Dataset 4 | C22: =#REF! ->  | D22: 0 | E22: F1 1 0 -1E+300 1E+300 1 0 0 0 0 1 25 BetaGeneral Binomial Expon ExtValue Gamma Geomet IntUniform InvGauss Logistic LogLogistic Lognorm NegBin Normal Pareto Pearson5 Pearson6 Pert Poisson Triang Uniform Weibull ExtValueMin Laplace Levy Kumaraswamy 0 1 -1 1 0 1 0 0 0 | F22: GF1_rK0qDwEAEwBiAQwjACcANQBqAH4AfwCNAJsAPAFeAVgBKwD//wAAAAAAAAEEAAAAAAAAAAABHEZpdCBDb21wYXJpc29uIGZvciBEYXRhc2V0IDQBE1Jpc2tQb2lzc29uKDEuMjAwMCkBARAAAgABClN0YXRpc3RpY3MDAQEA/wEBAQEBAAEBAQAEAAAAAQEBAQEAAQEBAAQAAAAKugABzgAA5AAA7wAA+gAABQEAEAEAGwEAJgEAMQEAEgAFSW5wdXQAAAD/AAD/AQEAAgAUAAdQb2lzc29uAAEA/9wUPAEAAAIACQAAAAJPAQAAAgAJAAAAA4wBAAACAAkAAAAETAEAAAIACQAAAAU5AQAAAgAJAAAABk4BAAACAAkAAAAHIwEAAAIACQAAAAgpAQAAAgAJAAAACWABAAACAEQBTgEBAQMBmpmZmZmZqT8AAGZmZmZmZu4/AAAFAAEBAQABAQEA | J22: 0 8 | K22: F1 FALSE 1000 .95 | O22: 4 | P22: TRUE
A23: FIT_56224_4C872 | B23: Dataset 12 | C23: =#REF! ->  | D23: 0 | E23: F1 1 0 -1E+300 1E+300 1 0 0 0 0 1 25 BetaGeneral Binomial Expon ExtValue Gamma Geomet IntUniform InvGauss Logistic LogLogistic Lognorm NegBin Normal Pareto Pearson5 Pearson6 Pert Poisson Triang Uniform Weibull ExtValueMin Laplace Levy Kumaraswamy 0 1 -1 1 0 1 0 0 0 | F23: GF1_rK0qDwEAEwBkAQwjACcANQBsAIAAgQCPAJ0APgFgAVoBKwD//wAAAAAAAAEEAAAAAAAAAAABHUZpdCBDb21wYXJpc29uIGZvciBEYXRhc2V0IDEyARRSaXNrUG9pc3NvbigwLjIwMDAwKQEBEAACAAEKU3RhdGlzdGljcwMBAQD/AQEBAQEAAQEBAAQAAAABAQEBAQABAQEABAAAAAq8AAHQAADmAADxAAD8AAAHAQASAQAdAQAoAQAzAQASAAVJbnB1dAAAAP8AAP8BAQACABQAB1BvaXNzb24AAQD/3BQ8AQAAAgAJAAAAAk8BAAACAAkAAAADjAEAAAIACQAAAARMAQAAAgAJAAAABTkBAAACAAkAAAAGTgEAAAIACQAAAAcjAQAAAgAJAAAACCkBAAACAAkAAAAJYAEAAAIARgFQAQEBAwGamZmZmZmpPwAAZmZmZmZm7j8AAAUAAQEBAAEBAQA= | J23: 0 8 | K23: F1 FALSE 1000 .95 | O23: 4 | P23: TRUE
A24: FIT_30964_2B491 | B24: Dataset 13 | C24: =#REF! ->  | D24: 0 | E24: F1 0 0 -1E+300 1E+300 1 0 0 0 0 1 25 BetaGeneral Binomial Expon ExtValue Gamma Geomet IntUniform InvGauss Logistic LogLogistic Lognorm NegBin Normal Pareto Pearson5 Pearson6 Pert Poisson Triang Uniform Weibull ExtValueMin Laplace Levy Kumaraswamy 0 1 -1 1 0 1 0 0 0 | F24: GF1_rK0qDwEAEwCFAQwjACcANQCJAJ0AngCsALoAXwGBAXsBKwD//wAAAAAAAAEEAAAAAAAAAAABHUZpdCBDb21wYXJpc29uIGZvciBEYXRhc2V0IDEzATFSaXNrQmV0YUdlbmVyYWwoMC4xNDA3OCwwLjE0NDA3LDAuMDU2MDAwLDAuMTg0MDApAQEQAAIAAQpTdGF0aXN0aWNzAwEBAP8BAQEBAQABAQEABAAAAAEBAQEBAAEBAQAEAAAACtkAAe0AAAcBABIBAB0BACgBADMBAD4BAEkBAFQBABIABUlucHV0AAAA/wAA/wEBAAIAGAALQmV0YUdlbmVyYWwAAQD/3BQ8AQAAAgAJAAAAAk8BAAACAAkAAAADjAEAAAIACQAAAARMAQAAAgAJAAAABTkBAAACAAkAAAAGTgEAAAIACQAAAAcjAQAAAgAJAAAACCkBAAACAAkAAAAJYAEAAAIAZwFxAQEBAwGamZmZmZmpPwAAZmZmZmZm7j8AAAUAAQEBAAEBAQA= | J24: 0 8 | K24: F1 FALSE 1000 .95 | O24: 1 | P24: TRUE
A25: FIT_80328_11648 | B25: Dataset 14 | C25: =#REF! ->  | D25: 0 | E25: F1 0 0 -1E+300 1E+300 1 0 0 0 0 1 25 BetaGeneral Binomial Expon ExtValue Gamma Geomet IntUniform InvGauss Logistic LogLogistic Lognorm NegBin Normal Pareto Pearson5 Pearson6 Pert Poisson Triang Uniform Weibull ExtValueMin Laplace Levy Kumaraswamy 0 1 -1 1 0 1 0 0 0 | F25: GF1_rK0qDwEAEwB3AQwjACcANQCBAJUAlgCkALIAUQFzAW0BKwD//wAAAAAAAAEEAAAAAAAAAAABHUZpdCBDb21wYXJpc29uIGZvciBEYXRhc2V0IDE0ASlSaXNrRXhwb24oMC4wNzUyMDAsUmlza1NoaWZ0KC0wLjAwNzA0MDApKQEBEAACAAEKU3RhdGlzdGljcwMBAQD/AQEBAQEAAQEBAAQAAAABAQEBAQABAQEABAAAAArRAAHlAAD5AAAEAQAPAQAaAQAlAQAwAQA7AQBGAQASAAVJbnB1dAAAAP8AAP8BAQACABIABUV4cG9uAAEA/9wUPAEAAAIACQAAAAJPAQAAAgAJAAAAA4wBAAACAAkAAAAETAEAAAIACQAAAAU5AQAAAgAJAAAABk4BAAACAAkAAAAHIwEAAAIACQAAAAgpAQAAAgAJAAAACWABAAACAFkBYwEBAQMBmpmZmZmZqT8AAGZmZmZmZu4/AAAFAAEBAQABAQEA | J25: 0 8 | K25: F1 FALSE 1000 .95 | O25: 1 | P25: TRUE
A26: FIT_55DCB_A8BF1 | B26: Dataset 15 | C26: =#REF! ->  | D26: 0 | E26: F1 0 0 -1E+300 1E+300 1 0 0 0 0 1 25 BetaGeneral Binomial Expon ExtValue Gamma Geomet IntUniform InvGauss Logistic LogLogistic Lognorm NegBin Normal Pareto Pearson5 Pearson6 Pert Poisson Triang Uniform Weibull ExtValueMin Laplace Levy Kumaraswamy 0 1 -1 1 0 1 0 0 0 | F26: GF1_rK0qDwEAEwBvAQwjACcANQB3AIsAjACaAKgASQFrAWUBKwD//wAAAAAAAAEEAAAAAAAAAAABHUZpdCBDb21wYXJpc29uIGZvciBEYXRhc2V0IDE1AR9SaXNrVW5pZm9ybSgtMC4wMDM0NzUwLDAuMjcxMTcpAQEQAAIAAQpTdGF0aXN0aWNzAwEBAP8BAQEBAQABAQEABAAAAAEBAQEBAAEBAQAEAAAACscAAdsAAPEAAPwAAAcBABIBAB0BACgBADMBAD4BABIABUlucHV0AAAA/wAA/wEBAAIAFAAHVW5pZm9ybQABAP/cFDwBAAACAAkAAAACTwEAAAIACQAAAAOMAQAAAgAJAAAABEwBAAACAAkAAAAFOQEAAAIACQAAAAZOAQAAAgAJAAAAByMBAAACAAkAAAAIKQEAAAIACQAAAAlgAQAAAgBRAVsBAQEDAZqZmZmZmak/AABmZmZmZmbuPwAABQABAQEAAQEBAA== | J26: 0 8 | K26: F1 FALSE 1000 .95 | O26: 1 | P26: TRUE
A27: FIT_4D8DD_E5B3A | B27: Dataset 16 | C27: =#REF! ->  | D27: 0 | E27: F1 0 0 -1E+300 1E+300 1 0 0 0 0 1 25 BetaGeneral Binomial Expon ExtValue Gamma Geomet IntUniform InvGauss Logistic LogLogistic Lognorm NegBin Normal Pareto Pearson5 Pearson6 Pert Poisson Triang Uniform Weibull ExtValueMin Laplace Levy Kumaraswamy 0 1 -1 1 0 1 0 0 0 | F27: GF1_rK0qDwEAEwCEAQwjACcANQCLAJ8AoACuALwAXgGAAXoBKwD//wAAAAAAAAEEAAAAAAAAAAABHUZpdCBDb21wYXJpc29uIGZvciBEYXRhc2V0IDE2ATNSaXNrSW52R2F1c3MoMC4wNTc2MjIsMC4wMzIyNDIsUmlza1NoaWZ0KDAuMDM1MzM4KSkBARAAAgABClN0YXRpc3RpY3MDAQEA/wEBAQEBAAEBAQAEAAAAAQEBAQEAAQEBAAQAAAAK2wAB7wAABgEAEQEAHAEAJwEAMgEAPQEASAEAUwEAEgAFSW5wdXQAAAD/AAD/AQEAAgAVAAhJbnZHYXVzcwABAP/cFDwBAAACAAkAAAACTwEAAAIACQAAAAOMAQAAAgAJAAAABEwBAAACAAkAAAAFOQEAAAIACQAAAAZOAQAAAgAJAAAAByMBAAACAAkAAAAIKQEAAAIACQAAAAlgAQAAAgBmAXABAQEDAZqZmZmZmak/AABmZmZmZmbuPwAABQABAQEAAQEBAA== | J27: 0 8 | K27: F1 FALSE 1000 .95 | O27: 1 | P27: TRUE
A28: FIT_3D40E_AFA2D | B28: Dataset 17 | C28: =#REF! ->  | D28: 0 | E28: F1 0 0 -1E+300 1E+300 1 0 0 0 0 1 25 BetaGeneral Binomial Expon ExtValue Gamma Geomet IntUniform InvGauss Logistic LogLogistic Lognorm NegBin Normal Pareto Pearson5 Pearson6 Pert Poisson Triang Uniform Weibull ExtValueMin Laplace Levy Kumaraswamy 0 1 -1 1 0 1 0 0 0 | F28: GF1_rK0qDwEAEwCFAQwjACcANQCJAJ0AngCsALoAXwGBAXsBKwD//wAAAAAAAAEEAAAAAAAAAAABHUZpdCBDb21wYXJpc29uIGZvciBEYXRhc2V0IDE3ATFSaXNrQmV0YUdlbmVyYWwoMC4xNDgzMSwwLjE1NzQyLDAuMDQ2OTAwLDAuMTk1MzApAQEQAAIAAQpTdGF0aXN0aWNzAwEBAP8BAQEBAQABAQEABAAAAAEBAQEBAAEBAQAEAAAACtkAAe0AAAcBABIBAB0BACgBADMBAD4BAEkBAFQBABIABUlucHV0AAAA/wAA/wEBAAIAGAALQmV0YUdlbmVyYWwAAQD/3BQ8AQAAAgAJAAAAAk8BAAACAAkAAAADjAEAAAIACQAAAARMAQAAAgAJAAAABTkBAAACAAkAAAAGTgEAAAIACQAAAAcjAQAAAgAJAAAACCkBAAACAAkAAAAJYAEAAAIAZwFxAQEBAwGamZmZmZmpPwAAZmZmZmZm7j8AAAUAAQEBAAEBAQA= | J28: 0 8 | K28: F1 FALSE 1000 .95 | O28: 1 | P28: TRUE
A29: FIT_4A968_262E | B29: Dataset 18 | C29: =#REF! ->  | D29: 0 | E29: F1 0 0 -1E+300 1E+300 1 0 0 0 0 1 25 BetaGeneral Binomial Expon ExtValue Gamma Geomet IntUniform InvGauss Logistic LogLogistic Lognorm NegBin Normal Pareto Pearson5 Pearson6 Pert Poisson Triang Uniform Weibull ExtValueMin Laplace Levy Kumaraswamy 0 1 -1 1 0 1 0 0 0 | F29: GF1_rK0qDwEAEwBtAQwjACcANQB1AIkAigCYAKYARwFpAWMBKwD//wAAAAAAAAEEAAAAAAAAAAABHUZpdCBDb21wYXJpc29uIGZvciBEYXRhc2V0IDE4AR1SaXNrVW5pZm9ybSgwLjAzNTE3NSwwLjE1MjMyKQEBEAACAAEKU3RhdGlzdGljcwMBAQD/AQEBAQEAAQEBAAQAAAABAQEBAQABAQEABAAAAArFAAHZAADvAAD6AAAFAQAQAQAbAQAmAQAxAQA8AQASAAVJbnB1dAAAAP8AAP8BAQACABQAB1VuaWZvcm0AAQD/3BQ8AQAAAgAJAAAAAk8BAAACAAkAAAADjAEAAAIACQAAAARMAQAAAgAJAAAABTkBAAACAAkAAAAGTgEAAAIACQAAAAcjAQAAAgAJAAAACCkBAAACAAkAAAAJYAEAAAIATwFZAQEBAwGamZmZmZmpPwAAZmZmZmZm7j8AAAUAAQEBAAEBAQA= | J29: 0 8 | K29: F1 FALSE 1000 .95 | O29: 1 | P29: TRUE
A30: FIT_3007D_A494E | B30: Dataset 19 | C30: =#REF! ->  | D30: 0 | E30: F1 0 0 -1E+300 1E+300 1 0 0 0 0 1 25 BetaGeneral Binomial Expon ExtValue Gamma Geomet IntUniform InvGauss Logistic LogLogistic Lognorm NegBin Normal Pareto Pearson5 Pearson6 Pert Poisson Triang Uniform Weibull ExtValueMin Laplace Levy Kumaraswamy 0 1 -1 1 0 1 0 0 0 | F30: GF1_rK0qDwEAEwBtAQwjACcANQB1AIkAigCYAKYARwFpAWMBKwD//wAAAAAAAAEEAAAAAAAAAAABHUZpdCBDb21wYXJpc29uIGZvciBEYXRhc2V0IDE5AR1SaXNrVW5pZm9ybSgwLjAzNTE3NSwwLjE1MjMyKQEBEAACAAEKU3RhdGlzdGljcwMBAQD/AQEBAQEAAQEBAAQAAAABAQEBAQABAQEABAAAAArFAAHZAADvAAD6AAAFAQAQAQAbAQAmAQAxAQA8AQASAAVJbnB1dAAAAP8AAP8BAQACABQAB1VuaWZvcm0AAQD/3BQ8AQAAAgAJAAAAAk8BAAACAAkAAAADjAEAAAIACQAAAARMAQAAAgAJAAAABTkBAAACAAkAAAAGTgEAAAIACQAAAAcjAQAAAgAJAAAACCkBAAACAAkAAAAJYAEAAAIATwFZAQEBAwGamZmZmZmpPwAAZmZmZmZm7j8AAAUAAQEBAAEBAQA= | J30: 0 8 | K30: F1 FALSE 1000 .95 | O30: 1 | P30: TRUE
A31: FIT_4CD0E_958AB | B31: Dataset 20 | C31: =#REF! ->  | D31: 0 | E31: F1 1 0 -1E+300 1E+300 1 0 0 0 0 1 25 BetaGeneral Binomial Expon ExtValue Gamma Geomet IntUniform InvGauss Logistic LogLogistic Lognorm NegBin Normal Pareto Pearson5 Pearson6 Pert Poisson Triang Uniform Weibull ExtValueMin Laplace Levy Kumaraswamy 0 1 -1 1 0 1 0 0 0 | F31: GF1_rK0qDwEAEwBjAQwjACcANQBrAH8AgACOAJwAPQFfAVkBKwD//wAAAAAAAAEEAAAAAAAAAAABHUZpdCBDb21wYXJpc29uIGZvciBEYXRhc2V0IDIwARNSaXNrUG9pc3NvbigxLjIwMDApAQEQAAIAAQpTdGF0aXN0aWNzAwEBAP8BAQEBAQABAQEABAAAAAEBAQEBAAEBAQAEAAAACrsAAc8AAOUAAPAAAPsAAAYBABEBABwBACcBADIBABIABUlucHV0AAAA/wAA/wEBAAIAFAAHUG9pc3NvbgABAP/cFDwBAAACAAkAAAACTwEAAAIACQAAAAOMAQAAAgAJAAAABEwBAAACAAkAAAAFOQEAAAIACQAAAAZOAQAAAgAJAAAAByMBAAACAAkAAAAIKQEAAAIACQAAAAlgAQAAAgBFAU8BAQEDAZqZmZmZmak/AABmZmZmZmbuPwAABQABAQEAAQEBAA== | J31: 0 8 | K31: F1 FALSE 1000 .95 | O31: 4 | P31: TRUE
A32: FIT_B6A48_2EAB1 | B32: Dataset 21 | C32: =#REF! ->  | D32: 0 | E32: F1 1 0 -1E+300 1E+300 1 0 0 0 0 1 25 BetaGeneral Binomial Expon ExtValue Gamma Geomet IntUniform InvGauss Logistic LogLogistic Lognorm NegBin Normal Pareto Pearson5 Pearson6 Pert Poisson Triang Uniform Weibull ExtValueMin Laplace Levy Kumaraswamy 0 1 -1 1 0 1 0 0 0 | F32: GF1_rK0qDwEAEwBkAQwjACcANQBsAIAAgQCPAJ0APgFgAVoBKwD//wAAAAAAAAEEAAAAAAAAAAABHUZpdCBDb21wYXJpc29uIGZvciBEYXRhc2V0IDIxARRSaXNrUG9pc3NvbigwLjIwMDAwKQEBEAACAAEKU3RhdGlzdGljcwMBAQD/AQEBAQEAAQEBAAQAAAABAQEBAQABAQEABAAAAAq8AAHQAADmAADxAAD8AAAHAQASAQAdAQAoAQAzAQASAAVJbnB1dAAAAP8AAP8BAQACABQAB1BvaXNzb24AAQD/3BQ8AQAAAgAJAAAAAk8BAAACAAkAAAADjAEAAAIACQAAAARMAQAAAgAJAAAABTkBAAACAAkAAAAGTgEAAAIACQAAAAcjAQAAAgAJAAAACCkBAAACAAkAAAAJYAEAAAIARgFQAQEBAwGamZmZmZmpPwAAZmZmZmZm7j8AAAUAAQEBAAEBAQA= | J32: 0 8 | K32: F1 FALSE 1000 .95 | O32: 4 | P32: TRUE
A33: FIT_7A1A1_1784E | B33: Dataset 22 | C33: =#REF! ->  | D33: 0 | E33: F1 0 0 -1E+300 1E+300 1 0 0 0 0 1 25 BetaGeneral Binomial Expon ExtValue Gamma Geomet IntUniform InvGauss Logistic LogLogistic Lognorm NegBin Normal Pareto Pearson5 Pearson6 Pert Poisson Triang Uniform Weibull ExtValueMin Laplace Levy Kumaraswamy 0 1 -1 1 0 1 0 0 0 | F33: GF1_rK0qDwEAEwBsAQwjACcANQB0AIgAiQCXAKUARgFoAWIBKwD//wAAAAAAAAEEAAAAAAAAAAABHUZpdCBDb21wYXJpc29uIGZvciBEYXRhc2V0IDIyARxSaXNrTGFwbGFjZSgzOS41MDAwLDUxLjA1MzEpAQEQAAIAAQpTdGF0aXN0aWNzAwEBAP8BAQEBAQABAQEABAAAAAEBAQEBAAEBAQAEAAAACsQAAdgAAO4AAPkAAAQBAA8BABoBACUBADABADsBABIABUlucHV0AAAA/wAA/wEBAAIAFAAHTGFwbGFjZQABAP/cFDwBAAACAAkAAAACTwEAAAIACQAAAAOMAQAAAgAJAAAABEwBAAACAAkAAAAFOQEAAAIACQAAAAZOAQAAAgAJAAAAByMBAAACAAkAAAAIKQEAAAIACQAAAAlgAQAAAgBOAVgBAQEDAZqZmZmZmak/AABmZmZmZmbuPwAABQABAQEAAQEBAA== | J33: 0 8 | K33: F1 FALSE 1000 .95 | O33: 1 | P33: TRUE
A34: FIT_F28C9_343E | B34: Dataset 23 | C34: =#REF! ->  | D34: 0 | E34: F1 1 0 -1E+300 1E+300 1 0 0 0 0 1 25 BetaGeneral Binomial Expon ExtValue Gamma Geomet IntUniform InvGauss Logistic LogLogistic Lognorm NegBin Normal Pareto Pearson5 Pearson6 Pert Poisson Triang Uniform Weibull ExtValueMin Laplace Levy Kumaraswamy 0 1 -1 1 0 1 0 0 0 | F34: GF1_rK0qDwEAEwBjAQwjACcANQBsAIAAgQCPAJ0APQFfAVkBKwD//wAAAAAAAAEEAAAAAAAAAAABHUZpdCBDb21wYXJpc29uIGZvciBEYXRhc2V0IDIzARRSaXNrR2VvbWV0KDAuMDk4MDM5KQEBEAACAAEKU3RhdGlzdGljcwMBAQD/AQEBAQEAAQEBAAQAAAABAQEBAQABAQEABAAAAAq8AAHQAADlAADwAAD7AAAGAQARAQAcAQAnAQAyAQASAAVJbnB1dAAAAP8AAP8BAQACABMABkdlb21ldAABAP/cFDwBAAACAAkAAAACTwEAAAIACQAAAAOMAQAAAgAJAAAABEwBAAACAAkAAAAFOQEAAAIACQAAAAZOAQAAAgAJAAAAByMBAAACAAkAAAAIKQEAAAIACQAAAAlgAQAAAgBFAU8BAQEDAZqZmZmZmak/AABmZmZmZmbuPwAABQABAQEAAQEBAA== | J34: 0 8 | K34: F1 FALSE 1000 .95 | O34: 4 | P34: TRUE
A35: FIT_1A783_C27C4 | B35: Dataset 24 | C35: =#REF! ->  | D35: 0 | E35: F1 1 0 -1E+300 1E+300 1 0 0 0 0 1 25 BetaGeneral Binomial Expon ExtValue Gamma Geomet IntUniform InvGauss Logistic LogLogistic Lognorm NegBin Normal Pareto Pearson5 Pearson6 Pert Poisson Triang Uniform Weibull ExtValueMin Laplace Levy Kumaraswamy 0 1 -1 1 0 1 0 0 0 | F35: GF1_rK0qDwEAEwBQAQwjACcANQBYAGwAbQB7AIkAKgFMAUYBKwD//wAAAAAAAAEEAAAAAAAAAAABHUZpdCBDb21wYXJpc29uIGZvciBEYXRhc2V0IDI0AQABARAAAgABClN0YXRpc3RpY3MDAQEA/wEBAQEBAAEBAQAEAAAAAQEBAQEAAQEBAAQAAAAKqAABvAAA0gAA3QAA6AAA8wAA/gAACQEAFAEAHwEAEgAFSW5wdXQAAAD/AAD/AQEAAgAUAAdQb2lzc29uAAEA/9wUPAEAAAIACQAAAAJPAQAAAgAJAAAAA4wBAAACAAkAAAAETAEAAAIACQAAAAU5AQAAAgAJAAAABk4BAAACAAkAAAAHIwEAAAIACQAAAAgpAQAAAgAJAAAACWABAAACADIBPAEBAQMBmpmZmZmZqT8AAGZmZmZmZu4/AAAFAAEBAQABAQEA | J35: 0 8 | K35: F1 FALSE 1000 .95 | O35: 4 | P35: TRUE
A36: FIT_79F5D_6456 | B36: Dataset 25 | C36: =#REF! ->  | D36: 0 | E36: F1 1 0 -1E+300 1E+300 1 0 0 0 0 1 25 BetaGeneral Binomial Expon ExtValue Gamma Geomet IntUniform InvGauss Logistic LogLogistic Lognorm NegBin Normal Pareto Pearson5 Pearson6 Pert Poisson Triang Uniform Weibull ExtValueMin Laplace Levy Kumaraswamy 0 1 -1 1 0 1 0 0 0 | F36: GF1_rK0qDwEAEwBiAQwjACcANQBrAH8AgACOAJwAPAFeAVgBKwD//wAAAAAAAAEEAAAAAAAAAAABHUZpdCBDb21wYXJpc29uIGZvciBEYXRhc2V0IDI1ARNSaXNrR2VvbWV0KDAuMzMzMzMpAQEQAAIAAQpTdGF0aXN0aWNzAwEBAP8BAQEBAQABAQEABAAAAAEBAQEBAAEBAQAEAAAACrsAAc8AAOQAAO8AAPoAAAUBABABABsBACYBADEBABIABUlucHV0AAAA/wAA/wEBAAIAEwAGR2VvbWV0AAEA/9wUPAEAAAIACQAAAAJPAQAAAgAJAAAAA4wBAAACAAkAAAAETAEAAAIACQAAAAU5AQAAAgAJAAAABk4BAAACAAkAAAAHIwEAAAIACQAAAAgpAQAAAgAJAAAACWABAAACAEQBTgEBAQMBmpmZmZmZqT8AAGZmZmZmZu4/AAAFAAEBAQABAQEA | J36: 0 8 | K36: F1 FALSE 1000 .95 | O36: 4 | P36: TRUE

Sheet Tables in STPIS chapter

Sheet T7.1 Historical SC performance
C3: 30 | D3: 23 | E3: 46 | F3: 28 | G3: 33
C4: 0 | D4: 2 | E4: 0 | F4: 0 | G4: 2
C5: 5 | D5: 6 | E5: 12 | F5: 7 | G5: 1
A6: Parameter | B6: Sub-parameter | C6: 2020 | D6: 2021 | E6: 2022 | F6: 2023 | G6: 2024 | H6: 2020-24 average
A7: Unplanned outage circuit event rate | B7: Lines event rate - fault | C7: ='2020-24 actual performance data'!C23 -> 0.176 | D7: ='2020-24 actual performance data'!D23 -> 0.1825396825 | E7: ='2020-24 actual performance data'!E23 -> 0.06349206349 | F7: ='2020-24 actual performance data'!F23 -> 0.05303030303 | G7: ='2020-24 actual performance data'!G23 -> 0.09090909091 | H7: =AVERAGE(C7:G7) -> 0.113194228
B8: Transformer event rate - fault | C8: ='2020-24 actual performance data'!C24 -> 0.15625 | D8: ='2020-24 actual performance data'!D24 -> 0.1984126984 | E8: ='2020-24 actual performance data'!E24 -> 0.07142857143 | F8: ='2020-24 actual performance data'!F24 -> 0.048 | G8: ='2020-24 actual performance data'!G24 -> 0.07633587786 | H8: =AVERAGE(C8:G8) -> 0.1100854295
B9: Reactive plant event rate - fault | C9: ='2020-24 actual performance data'!C25 -> 0.2253521127 | D9: ='2020-24 actual performance data'!D25 -> 0.2142857143 | E9: ='2020-24 actual performance data'!E25 -> 0.04166666667 | F9: ='2020-24 actual performance data'!F25 -> 0.1232876712 | G9: ='2020-24 actual performance data'!G25 -> 0.05405405405 | H9: 0.1317292438
B10: Lines event rate - forced | C10: ='2020-24 actual performance data'!C26 -> 0.072 | D10: ='2020-24 actual performance data'!D26 -> 0.253968254 | E10: ='2020-24 actual performance data'!E26 -> 0.05555555556 | F10: ='2020-24 actual performance data'!F26 -> 0.02272727273 | G10: ='2020-24 actual performance data'!G26 -> 0.007575757576 | H10: 0.08236536797
B11: Transformer event rate - forced | C11: ='2020-24 actual performance data'!C27 -> 0.1171875 | D11: ='2020-24 actual performance data'!D27 -> 0.1349206349 | E11: ='2020-24 actual performance data'!E27 -> 0.0873015873 | F11: ='2020-24 actual performance data'!F27 -> 0.056 | G11: ='2020-24 actual performance data'!G27 -> 0.06870229008 | H11: 0.09282240246
B12: Reactive plant event rate - forced | C12: ='2020-24 actual performance data'!C28 -> 0.1971830986 | D12: ='2020-24 actual performance data'!D28 -> 0.1 | E12: ='2020-24 actual performance data'!E28 -> 0.05555555556 | F12: ='2020-24 actual performance data'!F28 -> 0.06849315068 | G12: ='2020-24 actual performance data'!G28 -> 0.04054054054 | H12: 0.09235446907
A13: Loss of supply event frequency | B13: Number of events greater than 0.05 minutes per annum | C13: ='2020-24 actual performance data'!C29 -> 3 | D13: ='2020-24 actual performance data'!D29 -> 0 | E13: ='2020-24 actual performance data'!E29 -> 2 | F13: ='2020-24 actual performance data'!F29 -> 0 | G13: ='2020-24 actual performance data'!G29 -> 1 | H13: 1.2
B14: Number of events greater than 0.30 minutes per annum | C14: ='2020-24 actual performance data'!C30 -> 1 | D14: ='2020-24 actual performance data'!D30 -> 0 | E14: ='2020-24 actual performance data'!E30 -> 0 | F14: ='2020-24 actual performance data'!F30 -> 0 | G14: ='2020-24 actual performance data'!G30 -> 0 | H14: 0.2
A15: Average outage duration | B15: Average outage duration | C15: ='2020-24 actual performance data'!C31 -> 57.6 | D15: ='2020-24 actual performance data'!D31 -> 37 | E15: ='2020-24 actual performance data'!E31 -> 39.5 | F15: ='2020-24 actual performance data'!F31 -> 47.85 | G15: ='2020-24 actual performance data'!G31 -> 169.5 | H15: 70.29
A16: Proper operation of equipment | B16: Failure of protection system | C16: ='2020-24 actual performance data'!C32 -> 23 | D16: ='2020-24 actual performance data'!D32 -> 16 | E16: ='2020-24 actual performance data'!E32 -> 6 | F16: ='2020-24 actual performance data'!F32 -> 1 | G16: ='2020-24 actual performance data'!G32 -> 0 | H16: 9.2
B17: Material failure of SCADA | C17: ='2020-24 actual performance data'!C33 -> 0 | D17: ='2020-24 actual performance data'!D33 -> 3 | E17: ='2020-24 actual performance data'!E33 -> 2 | F17: ='2020-24 actual performance data'!F33 -> 1 | G17: ='2020-24 actual performance data'!G33 -> 4 | H17: 2
B18: Incorrect operation isolation of primary or secondary equipment | C18: ='2020-24 actual performance data'!C34 -> 6 | D18: ='2020-24 actual performance data'!D34 -> 3 | E18: ='2020-24 actual performance data'!E34 -> 0 | F18: ='2020-24 actual performance data'!F34 -> 1 | G18: ='2020-24 actual performance data'!G34 -> 0 | H18: 2

Sheet F7.1-7.11 Performance vs target
D3: 30 | E3: 23 | F3: 46 | G3: 28 | H3: 33
D4: 0 | E4: 2 | F4: 0 | G4: 0 | H4: 2
D5: 5 | E5: 6 | F5: 12 | G5: 7 | H5: 1
A6: Parameter | B6: Sub-parameter | D6: 2020 | E6: 2021 | F6: 2022 | G6: 2023 | H6: 2024
A7: Unplanned outage curcuit event rate | B7: Lines event rate - fault | C7: Performance | D7: =INDEX('T7.1 Historical SC performance'!C$7:C$18,MATCH($B7,'T7.1 Historical SC performance'!$B$7:$B$18,0)) -> 0.176 | E7: =INDEX('T7.1 Historical SC performance'!D$7:D$18,MATCH($B7,'T7.1 Historical SC performance'!$B$7:$B$18,0)) -> 0.1825396825 | F7: =INDEX('T7.1 Historical SC performance'!E$7:E$18,MATCH($B7,'T7.1 Historical SC performance'!$B$7:$B$18,0)) -> 0.06349206349 | G7: =INDEX('T7.1 Historical SC performance'!F$7:F$18,MATCH($B7,'T7.1 Historical SC performance'!$B$7:$B$18,0)) -> 0.05303030303 | H7: =INDEX('T7.1 Historical SC performance'!G$7:G$18,MATCH($B7,'T7.1 Historical SC performance'!$B$7:$B$18,0)) -> 0.09090909091 | J7: lines | P7: lines
A8: Unplanned outage curcuit event rate | B8: Lines event rate - fault | C8: Cap | D8: 0.116 | E8: 0.116 | F8: 0.116 | G8: 0.116 | H8: 0.116 | J8: fault | P8: forced
A9: Unplanned outage curcuit event rate | B9: Lines event rate - fault | C9: Target | D9: 0.1738 | E9: 0.1738 | F9: 0.1738 | G9: 0.1738 | H9: 0.1738
A10: Unplanned outage curcuit event rate | B10: Lines event rate - fault | C10: Collar | D10: 0.232 | E10: 0.232 | F10: 0.232 | G10: 0.232 | H10: 0.232
A11: Unplanned outage curcuit event rate | B11: Transformer event rate - fault | C11: Performance | D11: =INDEX('T7.1 Historical SC performance'!C$7:C$18,MATCH($B11,'T7.1 Historical SC performance'!$B$7:$B$18,0)) -> 0.15625 | E11: =INDEX('T7.1 Historical SC performance'!D$7:D$18,MATCH($B11,'T7.1 Historical SC performance'!$B$7:$B$18,0)) -> 0.1984126984 | F11: =INDEX('T7.1 Historical SC performance'!E$7:E$18,MATCH($B11,'T7.1 Historical SC performance'!$B$7:$B$18,0)) -> 0.07142857143 | G11: =INDEX('T7.1 Historical SC performance'!F$7:F$18,MATCH($B11,'T7.1 Historical SC performance'!$B$7:$B$18,0)) -> 0.048 | H11: =INDEX('T7.1 Historical SC performance'!G$7:G$18,MATCH($B11,'T7.1 Historical SC performance'!$B$7:$B$18,0)) -> 0.07633587786
A12: Unplanned outage curcuit event rate | B12: Transformer event rate - fault | C12: Cap | D12: 0.066 | E12: 0.066 | F12: 0.066 | G12: 0.066 | H12: 0.066
A13: Unplanned outage curcuit event rate | B13: Transformer event rate - fault | C13: Target | D13: 0.117 | E13: 0.117 | F13: 0.117 | G13: 0.117 | H13: 0.117
A14: Unplanned outage curcuit event rate | B14: Transformer event rate - fault | C14: Collar | D14: 0.175 | E14: 0.175 | F14: 0.175 | G14: 0.175 | H14: 0.175
A15: Unplanned outage curcuit event rate | B15: Reactive plant event rate - fault | C15: Performance | D15: =INDEX('T7.1 Historical SC performance'!C$7:C$18,MATCH($B15,'T7.1 Historical SC performance'!$B$7:$B$18,0)) -> 0.2253521127 | E15: =INDEX('T7.1 Historical SC performance'!D$7:D$18,MATCH($B15,'T7.1 Historical SC performance'!$B$7:$B$18,0)) -> 0.2142857143 | F15: =INDEX('T7.1 Historical SC performance'!E$7:E$18,MATCH($B15,'T7.1 Historical SC performance'!$B$7:$B$18,0)) -> 0.04166666667 | G15: =INDEX('T7.1 Historical SC performance'!F$7:F$18,MATCH($B15,'T7.1 Historical SC performance'!$B$7:$B$18,0)) -> 0.1232876712 | H15: =INDEX('T7.1 Historical SC performance'!G$7:G$18,MATCH($B15,'T7.1 Historical SC performance'!$B$7:$B$18,0)) -> 0.05405405405
A16: Unplanned outage curcuit event rate | B16: Reactive plant event rate - fault | C16: Cap | D16: 0.155 | E16: 0.155 | F16: 0.155 | G16: 0.155 | H16: 0.155
A17: Unplanned outage curcuit event rate | B17: Reactive plant event rate - fault | C17: Target | D17: 0.1988 | E17: 0.1988 | F17: 0.1988 | G17: 0.1988 | H17: 0.1988 | J17: trans | P17: trans
A18: Unplanned outage curcuit event rate | B18: Reactive plant event rate - fault | C18: Collar | D18: 0.317 | E18: 0.317 | F18: 0.317 | G18: 0.317 | H18: 0.317 | J18: fault | P18: forced
A19: Unplanned outage curcuit event rate | B19: Lines event rate - forced | C19: Performance | D19: =INDEX('T7.1 Historical SC performance'!C$7:C$18,MATCH($B19,'T7.1 Historical SC performance'!$B$7:$B$18,0)) -> 0.072 | E19: =INDEX('T7.1 Historical SC performance'!D$7:D$18,MATCH($B19,'T7.1 Historical SC performance'!$B$7:$B$18,0)) -> 0.253968254 | F19: =INDEX('T7.1 Historical SC performance'!E$7:E$18,MATCH($B19,'T7.1 Historical SC performance'!$B$7:$B$18,0)) -> 0.05555555556 | G19: =INDEX('T7.1 Historical SC performance'!F$7:F$18,MATCH($B19,'T7.1 Historical SC performance'!$B$7:$B$18,0)) -> 0.02272727273 | H19: =INDEX('T7.1 Historical SC performance'!G$7:G$18,MATCH($B19,'T7.1 Historical SC performance'!$B$7:$B$18,0)) -> 0.007575757576
A20: Unplanned outage curcuit event rate | B20: Lines event rate - forced | C20: Cap | D20: 0.019 | E20: 0.019 | F20: 0.019 | G20: 0.019 | H20: 0.019
A21: Unplanned outage curcuit event rate | B21: Lines event rate - forced | C21: Target | D21: 0.1184 | E21: 0.1184 | F21: 0.1184 | G21: 0.1184 | H21: 0.1184
A22: Unplanned outage curcuit event rate | B22: Lines event rate - forced | C22: Collar | D22: 0.218 | E22: 0.218 | F22: 0.218 | G22: 0.218 | H22: 0.218
A23: Unplanned outage curcuit event rate | B23: Transformer event rate - forced | C23: Performance | D23: =INDEX('T7.1 Historical SC performance'!C$7:C$18,MATCH($B23,'T7.1 Historical SC performance'!$B$7:$B$18,0)) -> 0.1171875 | E23: =INDEX('T7.1 Historical SC performance'!D$7:D$18,MATCH($B23,'T7.1 Historical SC performance'!$B$7:$B$18,0)) -> 0.1349206349 | F23: =INDEX('T7.1 Historical SC performance'!E$7:E$18,MATCH($B23,'T7.1 Historical SC performance'!$B$7:$B$18,0)) -> 0.0873015873 | G23: =INDEX('T7.1 Historical SC performance'!F$7:F$18,MATCH($B23,'T7.1 Historical SC performance'!$B$7:$B$18,0)) -> 0.056 | H23: =INDEX('T7.1 Historical SC performance'!G$7:G$18,MATCH($B23,'T7.1 Historical SC performance'!$B$7:$B$18,0)) -> 0.06870229008
A24: Unplanned outage curcuit event rate | B24: Transformer event rate - forced | C24: Cap | D24: 0.073 | E24: 0.073 | F24: 0.073 | G24: 0.073 | H24: 0.073
A25: Unplanned outage curcuit event rate | B25: Transformer event rate - forced | C25: Target | D25: 0.1185 | E25: 0.1185 | F25: 0.1185 | G25: 0.1185 | H25: 0.1185
A26: Unplanned outage curcuit event rate | B26: Transformer event rate - forced | C26: Collar | D26: 0.161 | E26: 0.161 | F26: 0.161 | G26: 0.161 | H26: 0.161
A27: Unplanned outage curcuit event rate | B27: Reactive plant event rate - forced | C27: Performance | D27: =INDEX('T7.1 Historical SC performance'!C$7:C$18,MATCH($B27,'T7.1 Historical SC performance'!$B$7:$B$18,0)) -> 0.1971830986 | E27: =INDEX('T7.1 Historical SC performance'!D$7:D$18,MATCH($B27,'T7.1 Historical SC performance'!$B$7:$B$18,0)) -> 0.1 | F27: =INDEX('T7.1 Historical SC performance'!E$7:E$18,MATCH($B27,'T7.1 Historical SC performance'!$B$7:$B$18,0)) -> 0.05555555556 | G27: =INDEX('T7.1 Historical SC performance'!F$7:F$18,MATCH($B27,'T7.1 Historical SC performance'!$B$7:$B$18,0)) -> 0.06849315068 | H27: =INDEX('T7.1 Historical SC performance'!G$7:G$18,MATCH($B27,'T7.1 Historical SC performance'!$B$7:$B$18,0)) -> 0.04054054054
A28: Unplanned outage curcuit event rate | B28: Reactive plant event rate - forced | C28: Cap | D28: 0.247 | E28: 0.247 | F28: 0.247 | G28: 0.247 | H28: 0.247
A29: Unplanned outage curcuit event rate | B29: Reactive plant event rate - forced | C29: Target | D29: 0.3069 | E29: 0.3069 | F29: 0.3069 | G29: 0.3069 | H29: 0.3069
A30: Unplanned outage curcuit event rate | B30: Reactive plant event rate - forced | C30: Collar | D30: 0.366 | E30: 0.366 | F30: 0.366 | G30: 0.366 | H30: 0.366 | J30: react | P30: react
A31: Loss of supply event frequency | B31: Number of events greater than 0.05 minutes per annum | C31: Performance | D31: =INDEX('T7.1 Historical SC performance'!C$7:C$18,MATCH($B31,'T7.1 Historical SC performance'!$B$7:$B$18,0)) -> 3 | E31: =INDEX('T7.1 Historical SC performance'!D$7:D$18,MATCH($B31,'T7.1 Historical SC performance'!$B$7:$B$18,0)) -> 0 | F31: =INDEX('T7.1 Historical SC performance'!E$7:E$18,MATCH($B31,'T7.1 Historical SC performance'!$B$7:$B$18,0)) -> 2 | G31: =INDEX('T7.1 Historical SC performance'!F$7:F$18,MATCH($B31,'T7.1 Historical SC performance'!$B$7:$B$18,0)) -> 0 | H31: =INDEX('T7.1 Historical SC performance'!G$7:G$18,MATCH($B31,'T7.1 Historical SC performance'!$B$7:$B$18,0)) -> 1 | J31: fault | P31: forced
A32: Loss of supply event frequency | B32: Number of events greater than 0.05 minutes per annum | C32: Cap | D32: 0 | E32: 0 | F32: 0 | G32: 0 | H32: 0
A33: Loss of supply event frequency | B33: Number of events greater than 0.05 minutes per annum | C33: Target | D33: 1 | E33: 1 | F33: 1 | G33: 1 | H33: 1
A34: Loss of supply event frequency | B34: Number of events greater than 0.05 minutes per annum | C34: Collar | D34: 3 | E34: 3 | F34: 3 | G34: 3 | H34: 3
A35: Loss of supply event frequency | B35: Number of events greater than 0.30 minutes per annum | C35: Performance | D35: =INDEX('T7.1 Historical SC performance'!C$7:C$18,MATCH($B35,'T7.1 Historical SC performance'!$B$7:$B$18,0)) -> 1 | E35: =INDEX('T7.1 Historical SC performance'!D$7:D$18,MATCH($B35,'T7.1 Historical SC performance'!$B$7:$B$18,0)) -> 0 | F35: =INDEX('T7.1 Historical SC performance'!E$7:E$18,MATCH($B35,'T7.1 Historical SC performance'!$B$7:$B$18,0)) -> 0 | G35: =INDEX('T7.1 Historical SC performance'!F$7:F$18,MATCH($B35,'T7.1 Historical SC performance'!$B$7:$B$18,0)) -> 0 | H35: =INDEX('T7.1 Historical SC performance'!G$7:G$18,MATCH($B35,'T7.1 Historical SC performance'!$B$7:$B$18,0)) -> 0
A36: Loss of supply event frequency | B36: Number of events greater than 0.30 minutes per annum | C36: Cap | D36: 0 | E36: 0 | F36: 0 | G36: 0 | H36: 0
A37: Loss of supply event frequency | B37: Number of events greater than 0.30 minutes per annum | C37: Target | D37: 1 | E37: 1 | F37: 1 | G37: 1 | H37: 1
A38: Loss of supply event frequency | B38: Number of events greater than 0.30 minutes per annum | C38: Collar | D38: 2 | E38: 2 | F38: 2 | G38: 2 | H38: 2
A39: Average outage duration | B39: Average outage duration | C39: Performance | D39: =INDEX('T7.1 Historical SC performance'!C$7:C$18,MATCH($B39,'T7.1 Historical SC performance'!$B$7:$B$18,0)) -> 57.6 | E39: =INDEX('T7.1 Historical SC performance'!D$7:D$18,MATCH($B39,'T7.1 Historical SC performance'!$B$7:$B$18,0)) -> 37 | F39: =INDEX('T7.1 Historical SC performance'!E$7:E$18,MATCH($B39,'T7.1 Historical SC performance'!$B$7:$B$18,0)) -> 39.5 | G39: =INDEX('T7.1 Historical SC performance'!F$7:F$18,MATCH($B39,'T7.1 Historical SC performance'!$B$7:$B$18,0)) -> 47.85 | H39: =INDEX('T7.1 Historical SC performance'!G$7:G$18,MATCH($B39,'T7.1 Historical SC performance'!$B$7:$B$18,0)) -> 169.5
A40: Average outage duration | B40: Average outage duration | C40: Cap | D40: 19 | E40: 19 | F40: 19 | G40: 19 | H40: 19
A41: Average outage duration | B41: Average outage duration | C41: Target | D41: 53 | E41: 53 | F41: 53 | G41: 53 | H41: 53
A42: Average outage duration | B42: Average outage duration | C42: Collar | D42: 159 | E42: 159 | F42: 159 | G42: 159 | H42: 159
A43: Proper operation of equipment | B43: Failure of protection system | C43: Performance | D43: =INDEX('T7.1 Historical SC performance'!C$7:C$18,MATCH($B43,'T7.1 Historical SC performance'!$B$7:$B$18,0)) -> 23 | E43: =INDEX('T7.1 Historical SC performance'!D$7:D$18,MATCH($B43,'T7.1 Historical SC performance'!$B$7:$B$18,0)) -> 16 | F43: =INDEX('T7.1 Historical SC performance'!E$7:E$18,MATCH($B43,'T7.1 Historical SC performance'!$B$7:$B$18,0)) -> 6 | G43: =INDEX('T7.1 Historical SC performance'!F$7:F$18,MATCH($B43,'T7.1 Historical SC performance'!$B$7:$B$18,0)) -> 1 | H43: =INDEX('T7.1 Historical SC performance'!G$7:G$18,MATCH($B43,'T7.1 Historical SC performance'!$B$7:$B$18,0)) -> 0
A44: Proper operation of equipment | B44: Failure of protection system | C44: Cap | D44: 23 | E44: 23 | F44: 23 | G44: 23 | H44: 23
A45: Proper operation of equipment | B45: Failure of protection system | C45: Target | D45: 32 | E45: 32 | F45: 32 | G45: 32 | H45: 32
A46: Proper operation of equipment | B46: Failure of protection system | C46: Collar | D46: 42 | E46: 42 | F46: 42 | G46: 42 | H46: 42 | J46: LOS
A47: Proper operation of equipment | B47: Material failure of SCADA | C47: Performance | D47: =INDEX('T7.1 Historical SC performance'!C$7:C$18,MATCH($B47,'T7.1 Historical SC performance'!$B$7:$B$18,0)) -> 0 | E47: =INDEX('T7.1 Historical SC performance'!D$7:D$18,MATCH($B47,'T7.1 Historical SC performance'!$B$7:$B$18,0)) -> 3 | F47: =INDEX('T7.1 Historical SC performance'!E$7:E$18,MATCH($B47,'T7.1 Historical SC performance'!$B$7:$B$18,0)) -> 2 | G47: =INDEX('T7.1 Historical SC performance'!F$7:F$18,MATCH($B47,'T7.1 Historical SC performance'!$B$7:$B$18,0)) -> 1 | H47: =INDEX('T7.1 Historical SC performance'!G$7:G$18,MATCH($B47,'T7.1 Historical SC performance'!$B$7:$B$18,0)) -> 4 | J47: 0.05 | P47: LOS
A48: Proper operation of equipment | B48: Material failure of SCADA | C48: Cap | D48: 0 | E48: 0 | F48: 0 | G48: 0 | H48: 0 | P48: 0.3
A49: Proper operation of equipment | B49: Material failure of SCADA | C49: Target | D49: 1 | E49: 1 | F49: 1 | G49: 1 | H49: 1
A50: Proper operation of equipment | B50: Material failure of SCADA | C50: Collar | D50: 2 | E50: 2 | F50: 2 | G50: 2 | H50: 2
A51: Proper operation of equipment | B51: Incorrect operation isolation of primary or secondary equipment | C51: Performance | D51: =INDEX('T7.1 Historical SC performance'!C$7:C$18,MATCH($B51,'T7.1 Historical SC performance'!$B$7:$B$18,0)) -> 6 | E51: =INDEX('T7.1 Historical SC performance'!D$7:D$18,MATCH($B51,'T7.1 Historical SC performance'!$B$7:$B$18,0)) -> 3 | F51: =INDEX('T7.1 Historical SC performance'!E$7:E$18,MATCH($B51,'T7.1 Historical SC performance'!$B$7:$B$18,0)) -> 0 | G51: =INDEX('T7.1 Historical SC performance'!F$7:F$18,MATCH($B51,'T7.1 Historical SC performance'!$B$7:$B$18,0)) -> 1 | H51: =INDEX('T7.1 Historical SC performance'!G$7:G$18,MATCH($B51,'T7.1 Historical SC performance'!$B$7:$B$18,0)) -> 0
A52: Proper operation of equipment | B52: Incorrect operation isolation of primary or secondary equipment | C52: Cap | D52: 2 | E52: 2 | F52: 2 | G52: 2 | H52: 2
A53: Proper operation of equipment | B53: Incorrect operation isolation of primary or secondary equipment | C53: Target | D53: 6 | E53: 6 | F53: 6 | G53: 6 | H53: 6
A54: Proper operation of equipment | B54: Incorrect operation isolation of primary or secondary equipment | C54: Collar | D54: 11 | E54: 11 | F54: 11 | G54: 11 | H54: 11
J61: Outage | Q61: Failure of protect
Q77: Incorrect operation
I80: material
I81: failure
I83: SCADA

Sheet T7.3 Prop SC target cap & colla
C3: 30 | D3: 23 | E3: =#REF! ->  | F3: 28
C4: 0 | D4: 2 | E4: 0 | F4: 0
C5: 5 | D5: 6 | E5: 12 | F5: 7
A6: Parameter | B6: Sub-parameter | C6: Preferred distribution | D6: Target | E6: Floor | F6: Cap | G6: Weighting
A7: Unplanned outage curcuit event rate | B7: Lines event rate - fault | C7: Beta General | D7: ='T7.1 Historical SC performance'!H7 -> 0.113194228 | E7: 0.0530303 | F7: 0.1825397 | G7: 0.2
B8: Transformer event rate - fault | C8: Beta General | D8: ='T7.1 Historical SC performance'!H8 -> 0.1100854295 | E8: 0.048 | F8: 0.1984126 | G8: 0.2
B9: Reactive plant event rate - fault | C9: Uniform | D9: ='T7.1 Historical SC performance'!H9 -> 0.1317292438 | E9: 0.0095217 | F9: 0.2574971 | G9: 0.1
B10: Lines event rate - forced | C10: Exponential | D10: ='T7.1 Historical SC performance'!H10 -> 0.08236536797 | E10: 0 | F10: 0.21666749 | G10: 0.1
B11: Transformer event rate - forced | C11: Uniform | D11: ='T7.1 Historical SC performance'!H11 -> 0.09282240246 | E11: 0.0421889 | F11: 0.1487317 | G11: 0.1
B12: Reactive plant event rate - forced | C12: Inv Gauss | D12: ='T7.1 Historical SC performance'!H12 -> 0.09235446907 | E12: 0.04035915 | F12: 0.23499087 | G12: 0.05
A13: Loss of supply event frequency | B13: Number of events greater than 0.05 minutes per annum | C13: Poisson | D13: ='T7.1 Historical SC performance'!H13 -> 1.2 | E13: 0 | F13: 3 | G13: 0.15
B14: Number of events greater than 0.30 minutes per annum | C14: Poisson | D14: ='T7.1 Historical SC performance'!H14 -> 0.2 | E14: 0 | F14: 1 | G14: 0.15
A15: Average outage duration | B15: Average outage duration | C15: Inv Gauss | D15: ='T7.1 Historical SC performance'!H15 -> 70.29 | E15: 36.97415 | F15: 188.08471 | G15: 0.2
A16: Proper operation of equipment | B16: Failure of protection system | C16: Geometric | D16: ='T7.1 Historical SC performance'!H16 -> 9.2 | E16: 0 | F16: 29 | G16: 0
B17: Material failure of SCADA | C17: Geometric | D17: ='T7.1 Historical SC performance'!H17 -> 2 | E17: 0 | F17: 5 | G17: 0
B18: Incorrect operation isolation of primary or secondary equipment | C18: Geometric | D18: ='T7.1 Historical SC performance'!H18 -> 2 | E18: 0 | F18: 7 | G18: 0

Sheet Source data

Sheet 2020-24 actual performance data
A1: Table 1: Raw data transferand outage rate calculation
C2: 2020 | D2: 2020 | E2: 2021 | F2: 2021 | G2: 2022 | H2: 2022 | I2: 2023 | J2: 2023 | K2: 2024 | L2: 2024
B3: Lines | C3: ='2020'!O3 -> 125 | E3: ='2021'!O3 -> 126 | G3: ='2022 Q2-4'!O3 -> 126 | I3: ='2023'!P9 -> 132 | K3: ='2024'!P9 -> 132
B4: Transformers | C4: ='2020'!O4 -> 128 | E4: ='2021'!O4 -> 126 | G4: ='2022 Q2-4'!O4 -> 126 | I4: ='2023'!P10 -> 125 | K4: ='2024'!P10 -> 131
B5: Reactive Plant | C5: ='2020'!O5 -> 71 | E5: ='2021'!O5 -> 70 | G5: ='2022 Q2-4'!O5 -> 72 | I5: ='2023'!P11 -> 73 | K5: ='2024'!P11 -> 74
A6: S | B6: Performance parameter | C6: No. of Outages | D6: Outage Rate | E6: No. of Outages | F6: Outage Rate | G6: No. of Outages | H6: Outage Rate | I6: No. of Outages | J6: Outage Rate | K6: No. of Outages | L6: Outage Rate
A7: S1 | B7: line outage - fault | C7: ='2020'!M3 -> 22 | D7: =C7/$C$3 -> 0.176 | E7: ='2021'!M3 -> 23 | F7: =E7/$E$3 -> 0.1825396825 | G7: ='2022 Q1'!M3+'2022 Q2-4'!M3 -> 8 | H7: =G7/$G$3 -> 0.06349206349 | I7: ='2023'!N9 -> 7 | J7: =I7/$I$3 -> 0.05303030303 | K7: ='2024'!N9 -> 12 | L7: =K7/$K$3 -> 0.09090909091
A8: S2 | B8: transformer outage - fault | C8: ='2020'!M4 -> 20 | D8: =C8/$C$4 -> 0.15625 | E8: ='2021'!M4 -> 25 | F8: =E8/$E$4 -> 0.1984126984 | G8: ='2022 Q1'!M4+'2022 Q2-4'!M4 -> 9 | H8: =G8/$G$4 -> 0.07142857143 | I8: ='2023'!N10 -> 6 | J8: =I8/$I$4 -> 0.048 | K8: ='2024'!N10 -> 10 | L8: =K8/$K$4 -> 0.07633587786
A9: S3 | B9: reactive plant - fault | C9: ='2020'!M5 -> 16 | D9: =C9/$C$5 -> 0.2253521127 | E9: ='2021'!M5 -> 15 | F9: =E9/$E$5 -> 0.2142857143 | G9: ='2022 Q1'!M5+'2022 Q2-4'!M5 -> 3 | H9: =G9/$G$5 -> 0.04166666667 | I9: ='2023'!N11 -> 9 | J9: =I9/$I$5 -> 0.1232876712 | K9: ='2024'!N11 -> 4 | L9: =K9/$K$5 -> 0.05405405405
A10: S4 | B10: line outage - forced | C10: ='2020'!M6 -> 9 | D10: =C10/$C$3 -> 0.072 | E10: ='2021'!M6 -> 32 | F10: =E10/$E$3 -> 0.253968254 | G10: ='2022 Q1'!M6+'2022 Q2-4'!M6 -> 7 | H10: =G10/$G$3 -> 0.05555555556 | I10: ='2023'!N12 -> 3 | J10: =I10/$I$3 -> 0.02272727273 | K10: ='2024'!N12 -> 1 | L10: =K10/$K$3 -> 0.007575757576
A11: S5 | B11: transformer outage - forced | C11: ='2020'!M7 -> 15 | D11: =C11/$C$4 -> 0.1171875 | E11: ='2021'!M7 -> 17 | F11: =E11/$E$4 -> 0.1349206349 | G11: ='2022 Q1'!M7+'2022 Q2-4'!M7 -> 11 | H11: =G11/$G$4 -> 0.0873015873 | I11: ='2023'!N13 -> 7 | J11: =I11/$I$4 -> 0.056 | K11: ='2024'!N13 -> 9 | L11: =K11/$K$4 -> 0.06870229008
A12: S6 | B12: reactive plant - forced | C12: ='2020'!M8 -> 14 | D12: =C12/$C$5 -> 0.1971830986 | E12: ='2021'!M8 -> 7 | F12: =E12/$E$5 -> 0.1 | G12: ='2022 Q1'!M8+'2022 Q2-4'!M8 -> 4 | H12: =G12/$G$5 -> 0.05555555556 | I12: ='2023'!N14 -> 5 | J12: =I12/$I$5 -> 0.06849315068 | K12: ='2024'!N14 -> 3 | L12: =K12/$K$5 -> 0.04054054054
A13: S7 | B13: LOS >0.05 system minutes | D13: ='2020'!J10 -> 3 | F13: ='2021'!J10 -> 0 | H13: ='2022 Q1'!J10+'2022 Q2-4'!J10 -> 2 | J13: ='2023'!N17 -> 0 | L13: ='2024'!N17 -> 1
A14: S8 | B14: LOS >0.3 system minutes | D14: ='2020'!J11 -> 1 | F14: ='2021'!J11 -> 0 | H14: ='2022 Q1'!J11+'2022 Q2-4'!J11 -> 0 | J14: ='2023'!N18 -> 0 | L14: ='2024'!N18 -> 0
A15: S9 | B15: Average outage duration | D15: ='2020'!N15/'2020'!N14 -> 57.6 | F15: ='2021'!M15/'2021'!M14 -> 37 | H15: =('2022 Q1'!N15+'2022 Q2-4'!N15)/('2022 Q1'!N14+'2022 Q2-4'!N14) -> 39.5 | J15: ='2023'!N24/'2023'!N22 -> 47.85 | L15: ='2024'!N24/'2024'!N22 -> 169.5
A16: S10 | B16: Failure of protection system | D16: ='2020'!J17 -> 23 | F16: ='2021'!J17 -> 16 | H16: ='2022 Q1'!I17+'2022 Q2-4'!I17 -> 6 | J16: ='2023'!N27 -> 1 | L16: ='2024'!N27 -> 0
A17: S11 | B17: Material failure of SCADA | D17: ='2020'!J18 -> 0 | F17: ='2021'!J18 -> 3 | H17: ='2022 Q1'!I18+'2022 Q2-4'!I18 -> 2 | J17: ='2023'!N28 -> 1 | L17: ='2024'!N28 -> 4
A18: S12 | B18: Incorrect operational isolation of primary or secondary equipment | D18: ='2020'!J19 -> 6 | F18: ='2021'!J19 -> 3 | H18: ='2022 Q1'!I19+'2022 Q2-4'!I19 -> 0 | J18: ='2023'!N29 -> 1 | L18: ='2024'!N29 -> 0
A21: Table 2: STPIS SC Yearly Outage Rates Summary 2020-2024 (Calendar Years)
A22: S | B22: Performance parameter | C22: 2020 | D22: 2021 | E22: 2022 | F22: 2023 | G22: 2024
A23: S1 | B23: line outage - fault | C23: =D7 -> 0.176 | D23: =F7 -> 0.1825396825 | E23: =H7 -> 0.06349206349 | F23: =J7 -> 0.05303030303 | G23: =L7 -> 0.09090909091
A24: S2 | B24: transformer outage - fault | C24: =D8 -> 0.15625 | D24: =F8 -> 0.1984126984 | E24: =H8 -> 0.07142857143 | F24: =J8 -> 0.048 | G24: =L8 -> 0.07633587786
A25: S3 | B25: reactive plant - fault | C25: 0.2253521127 | D25: 0.2142857143 | E25: 0.04166666667 | F25: 0.1232876712 | G25: 0.05405405405
A26: S4 | B26: line outage - forced | C26: 0.072 | D26: 0.253968254 | E26: 0.05555555556 | F26: 0.02272727273 | G26: 0.007575757576
A27: S5 | B27: transformer outage - forced | C27: 0.1171875 | D27: 0.1349206349 | E27: 0.0873015873 | F27: 0.056 | G27: 0.06870229008
A28: S6 | B28: reactive plant - forced | C28: 0.1971830986 | D28: 0.1 | E28: 0.05555555556 | F28: 0.06849315068 | G28: 0.04054054054
A29: S7 | B29: LOS >0.05 system minutes | C29: 3 | D29: 0 | E29: 2 | F29: 0 | G29: 1
A30: S8 | B30: LOS >0.3 system minutes | C30: 1 | D30: 0 | E30: 0 | F30: 0 | G30: 0
A31: S9 | B31: Average outage duration | C31: 57.6 | D31: 37 | E31: 39.5 | F31: 47.85 | G31: 169.5
A32: S10 | B32: Failure of protection system | C32: 23 | D32: 16 | E32: 6 | F32: 1 | G32: 0
A33: S11 | B33: Material failure of SCADA | C33: 0 | D33: 3 | E33: 2 | F33: 1 | G33: 4
A34: S12 | B34: Incorrect operational isolation of primary or secondary equipment | C34: 6 | D34: 3 | E34: 0 | F34: 1 | G34: =L18 -> 0

Sheet 2024
B2: Service Standards Performance
C4: TNSP | D4: AusNet Services
C5: Assessment period | D5: 2024
B7: S | C7: Performance parameter | I7: Average 2024 & 2023 | M7: 2024 | R7: 2023
C8: Unplanned circuit outage event rate (%) | D8: Floor | E8: Target | F8: Cap | G8: Revenue at Risk | I8: Performance (Without exclusions) | J8: Performance (With exclusions) | K8: Exclusions | M8: Performance (Without exclusions) | N8: Performance (With exclusions) | O8: Exclusions | P8: No. of defined circuits | R8: Performance (Without exclusions) | S8: Performance (With exclusions) | T8: Exclusions | U8: No. of defined circuits
B9: S1 | C9: Lines event rate – fault | D9: 22.37 | E9: 17.09 | F9: 12.43 | G9: 0.002 | I9: 9.848484848 | J9: 7.196969697 | M9: 16 | N9: 12 | O9: 4 | P9: 132 | R9: 10 | S9: 7 | T9: 3 | U9: 132
B10: S2 | C10: Transformer event rate – fault | D10: 18.8 | E10: 11.97 | F10: 6.49 | G10: 0.002 | I10: 9.670229008 | J10: 6.216793893 | M10: 18 | N10: 10 | O10: 8 | P10: 131 | R10: 7 | S10: 6 | T10: 1 | U10: 125
B11: S3 | C11: Reactive plant event rate – fault | D11: 30.43 | E11: 20.67 | F11: 14.9 | G11: 0.001 | I11: 10.89411329 | J11: 8.867086264 | M11: 7 | N11: 4 | O11: 3 | P11: 74 | R11: 9 | S11: 9 | T11: 0 | U11: 73
B12: S4 | C12: Lines event rate – forced | D12: 20.74 | E12: 10.14 | F12: 3.82 | G12: 0.001 | I12: 2.272727273 | J12: 1.515151515 | M12: 3 | N12: 1 | O12: 2 | P12: 132 | R12: 3 | S12: 3 | T12: 0 | U12: 132
B13: S5 | C13: Transformer event rate – forced | D13: 15.88 | E13: 11.97 | F13: 7.54 | G13: 0.001 | I13: 7.380152672 | J13: 6.235114504 | M13: 12 | N13: 9 | O13: 3 | P13: 131 | R13: 7 | S13: 7 | T13: 0 | U13: 125
B14: S6 | C14: Reactive plant event rate – forced | D14: 34.66 | E14: 27.78 | F14: 19.65 | G14: 0.0005 | I14: 8.163643095 | J14: 5.451684561 | M14: 6 | N14: 3 | O14: 3 | P14: 74 | R14: 6 | S14: 5 | T14: 1 | U14: 73
C16: Loss of supply event frequency | D16: Floor | E16: Target | F16: Cap | G16: Revenue at Risk | M16: Performance (Without exclusions) | N16: Performance (With exclusions) | O16: Exclusions
B17: S7 | C17: Loss of supply events: Number of events > x system minutes per annum | D17: 4 | E17: 1 | F17: 0 | G17: 0.0015 | M17: 1 | N17: 1 | O17: 0
B18: S8 | C18: Loss of supply events: Number of events > y system minutes per annum | D18: 2 | E18: 1 | F18: 0 | G18: 0.0015 | M18: 0 | N18: 0 | O18: 0
C20: Average outage duration | D20: Floor | E20: Target | F20: Cap | G20: Revenue at Risk | I20: Performance (Without exclusions) | J20: Performance (With exclusions) | K20: Exclusions | M20: Performance (Without exclusions) | N20: Performance (With exclusions) | O20: Exclusions (capped) | R20: Performance (Without exclusions) | S20: Performance (With exclusions) | T20: Exclusions
B21: S9 | C21: Average Outage Duration | D21: 87.2 | E21: 45.6 | F21: 10.2 | G21: 0.002 | I21: 133.7375 | J21: 108.725 | K21: 0 | M21: Number of LOS events | R21: Number of LOS events
M22: 4 | N22: 4 | O22: 0 | R22: 2 | S22: 1 | T22: 1
M23: Aggregate LOS minutes | R23: Aggregate LOS minutes
M24: 678 | N24: 678 | O24: 0 | R24: 195.95 | S24: 47.95 | T24: 148
C26: Proper operation of equipment | D26: Floor | E26: Target | F26: Cap | G26: Revenue at Risk | M26: Performance (Without exclusions) | N26: Performance (With exclusions)
B27: S10 | C27: Failure of protection system | D27: 40 | E27: 31 | F27: 22 | G27: 0 | M27: 0 | N27: 0
B28: S11 | C28: Material failure of SCADA | D28: 3 | E28: 1 | F28: 0 | G28: 0 | M28: 4 | N28: 4
B29: S12 | C29: Incorrect operational isolation of primary or secondary equipment | D29: 11 | E29: 6 | F29: 3 | G29: 0 | M29: 0 | N29: 0

Sheet 2023
B2: Service Standards Performance
C4: TNSP | D4: AusNet Services
C5: Assessment period | D5: 2023
B7: S | C7: Performance parameter | I7: Average 2023 & 2022 | M7: 2023 | R7: 2022
C8: Unplanned circuit outage event rate (%) | D8: Floor | E8: Target | F8: Cap | G8: Revenue at Risk | I8: Performance (Without exclusions) | J8: Performance (With exclusions) | K8: Exclusions | M8: Performance (Without exclusions) | N8: Performance (With exclusions) | O8: Exclusions | P8: No. of defined circuits | R8: Performance (Without exclusions) | S8: Performance (With exclusions) | T8: Exclusions | U8: No. of defined circuits
B9: S1 | C9: Lines event rate – fault | D9: 22.37 | E9: 17.09 | F9: 12.43 | G9: 0.002 | I9: 10.13708514 | J9: 5.826118326 | M9: 10 | N9: 7 | O9: 3 | P9: 132 | R9: 16 | S9: 8 | T9: 8 | U9: 126
B10: S2 | C10: Transformer event rate – fault | D10: 18.8 | E10: 11.97 | F10: 6.49 | G10: 0.002 | I10: 6.768253968 | J10: 5.971428571 | M10: 7 | N10: 6 | O10: 1 | P10: 125 | R10: 10 | S10: 9 | T10: 1 | U10: 126
B11: S3 | C11: Reactive plant event rate – fault | D11: 30.43 | E11: 20.67 | F11: 14.9 | G11: 0.001 | I11: 8.247716895 | J11: 8.247716895 | M11: 9 | N11: 9 | O11: 0 | P11: 73 | R11: 3 | S11: 3 | T11: 0 | U11: 72
B12: S4 | C12: Lines event rate – forced | D12: 20.74 | E12: 10.14 | F12: 3.82 | G12: 0.001 | I12: 3.914141414 | J12: 3.914141414 | M12: 3 | N12: 3 | O12: 0 | P12: 132 | R12: 7 | S12: 7 | T12: 0 | U12: 126
B13: S5 | C13: Transformer event rate – forced | D13: 15.88 | E13: 11.97 | F13: 7.54 | G13: 0.001 | I13: 7.958730159 | J13: 7.165079365 | M13: 7 | N13: 7 | O13: 0 | P13: 125 | R13: 13 | S13: 11 | T13: 2 | U13: 126
B14: S6 | C14: Reactive plant event rate – forced | D14: 34.66 | E14: 27.78 | F14: 19.65 | G14: 0.0005 | I14: 7.581811263 | J14: 6.202435312 | M14: 6 | N14: 5 | O14: 1 | P14: 73 | R14: 5 | S14: 4 | T14: 1 | U14: 72
C16: Loss of supply event frequency | D16: Floor | E16: Target | F16: Cap | G16: Revenue at Risk | M16: Performance (Without exclusions) | N16: Performance (With exclusions) | O16: Exclusions
B17: S7 | C17: Loss of supply events: Number of events > x system minutes per annum | D17: 4 | E17: 1 | F17: 0 | G17: 0.0015 | M17: 1 | N17: 0 | O17: 1
B18: S8 | C18: Loss of supply events: Number of events > y system minutes per annum | D18: 2 | E18: 1 | F18: 0 | G18: 0.0015 | M18: 0 | N18: 0 | O18: 0
C20: Average outage duration | D20: Floor | E20: Target | F20: Cap | G20: Revenue at Risk | I20: Performance (Without exclusions) | J20: Performance (With exclusions) | K20: Exclusions | M20: Performance (Without exclusions) | N20: Performance (With exclusions) | O20: Exclusions (capped) | R20: Performance (Without exclusions) | S20: Performance (With exclusions) | T20: Exclusions
B21: S9 | C21: Average Outage Duration | D21: 87.2 | E21: 45.6 | F21: 10.2 | G21: 0.002 | I21: 49.9875 | J21: 24.925 | K21: 0 | M21: Number of LOS events | R21: Number of LOS events
M22: 2 | N22: 1 | O22: 1 | R22: 2 | S22: 2 | T22: 0
M23: Aggregate LOS minutes | R23: Aggregate LOS minutes
M24: 195.95 | N24: 47.85 | O24: 148.1 | R24: 4 | S24: 4 | T24: 0
C26: Proper operation of equipment | D26: Floor | E26: Target | F26: Cap | G26: Revenue at Risk | M26: Performance (Without exclusions) | N26: Performance (With exclusions)
B27: S10 | C27: Failure of protection system | D27: 40 | E27: 31 | F27: 22 | G27: 0 | M27: 1 | N27: 1
B28: S11 | C28: Material failure of SCADA | D28: 3 | E28: 1 | F28: 0 | G28: 0 | M28: 1 | N28: 1
B29: S12 | C29: Incorrect operational isolation of primary or secondary equipment | D29: 11 | E29: 6 | F29: 3 | G29: 0 | M29: 1 | N29: 1

Sheet 2022 Q1
I1: Performance | L1: Number of events pa - 2022 | Q1: Number of events pa - 2021
B2: Average circuit outage rate (%) | C2: Floor | D2: Target | E2: Cap | F2: Weighting | H2: Unit | I2: without exclusions | J2: with exclusions | L2: without exclusions | M2: with exclusions | N2: exclusions | O2: No. of defined circuits | Q2: without exclusions | R2: with exclusions | S2: exclusions | T2: No. of defined circuits
A3: S1 | B3: line outage - fault | C3: 33.8 | D3: 25.4 | E3: 16 | F3: 0.2 | H3: average circuit outage rate | I3: 14.68253968 | J3: 9.920634921 | L3: 6 | M3: 2 | N3: 4 | O3: 126 | Q3: 31 | R3: 23 | S3: 8 | T3: 126
A4: S2 | B4: transformer outage - fault | C4: 31.8 | D4: 20.3 | E4: 9.2 | F4: 0.2 | H4: average circuit outage rate | I4: 11.11111111 | J4: 9.920634921 | L4: 1 | M4: 0 | N4: 1 | O4: 126 | Q4: 27 | R4: 25 | S4: 2 | T4: 126
A5: S3 | B5: reactive plant - fault | C5: 61.2 | D5: 34.3 | E5: 18.4 | F5: 0.1 | H5: average circuit outage rate | I5: 12.1031746 | J5: 12.1031746 | L5: 2 | M5: 2 | N5: 0 | O5: 72 | Q5: 15 | R5: 15 | S5: 0 | T5: 70
A6: S4 | B6: line outage - forced | C6: 17.1 | D6: 15 | E6: 12.3 | F6: 0.1 | H6: average circuit outage rate | I6: 26.19047619 | J6: 12.6984127 | L6: 0 | M6: 0 | N6: 0 | O6: 126 | Q6: 66 | R6: 32 | S6: 34 | T6: 126
A7: S5 | B7: transformer outage - forced | C7: 14.4 | D7: 10.4 | E7: 6.1 | F7: 0.1 | H7: average circuit outage rate | I7: 9.523809524 | J7: 7.936507937 | L7: 3 | M7: 3 | N7: 0 | O7: 126 | Q7: 21 | R7: 17 | S7: 4 | T7: 126
A8: S6 | B8: reactive plant - forced | C8: 40.7 | D8: 30.9 | E8: 19.9 | F8: 0.05 | H8: average circuit outage rate | I8: 7.083333333 | J8: 7.083333333 | L8: 3 | M8: 3 | N8: 0 | O8: 72 | Q8: 7 | R8: 7 | S8: 0 | T8: 70
B9: Loss of supply event frequency* | K9: exclusions
A10: S7 | B10: >0.05 system minutes | C10: 0 | D10: 1 | E10: 2 | F10: 0.15 | H10: number of events per annum | I10: 0 | J10: 0 | K10: 0
A11: S8 | B11: >0.3 system minutes | C11: 0 | D11: 1 | E11: 1 | F11: 0.15 | H11: number of events per annum | I11: 0 | J11: 0 | K11: 0
B13: Average outage duration
A14: S9 | B14: Average outage duration | C14: 3.4 | D14: 75.1 | E14: 334.2 | F14: 0.2 | H14: Average outage duration | I14: 18.5 | J14: 18.5 | K14: 0 | L14: number of LOS events | M14: 0 | N14: 0 | O14: 0 | Q14: 2 | R14: 2 | S14: 0
L15: Aggregate LOS minutes | M15: 0 | N15: 0 | O15: 0 | Q15: 74 | R15: 74 | S15: 0
B16: Proper operation of equipment
A17: S10 | B17: failure of protection system | C17: 23 | D17: 32 | E17: 42 | F17: 0 | H17: number of events per annum | I17: 3
A18: S11 | B18: Material failure of SCADA | C18: 0 | D18: 1.8 | E18: 4 | F18: 0 | H18: number of events per annum | I18: 1
A19: S12 | B19: Incorrect operational isolation of | C19: 2 | D19: 5.6 | E19: 10 | F19: 0 | H19: number of events per annum | I19: 0
B21: TNSP | C21: AusNet Services | I21: Adjust Loss of supply event frequency
B22: STPIS version | C22: October, 2015 | I22: >0.05 system minutes | J22: 5 | K22: 2 | L22: 0
B23: Regulatory Determination | C23: 2017/18 - 2021/22 | I23: >0.3 system minutes | J23: 2 | K23: 1 | L23: 0
B24: Base Year Allowed Revenue | C24: 534769514.8
B25: Base Year | C25: 2017-18
B26: Commencement of regulatory year | C26: 2017-04-01
B27: X factor | C27: 0.01106195025
B28: Forecast CPI - Final Decision | C28: 0.02399804305
C30: 2016-09-01 | D30: 2017-09-01 | E30: 2018-09-01 | F30: 2019-09-01 | G30: 2020-09-01 | H30: 2021-09-01
B31: Actual CPI | C31: 109.4 | D31: 111.4 | E31: 113.5 | F31: 115.4 | G31: 116.2 | H31: 119.7
B32: NEEDS TO BE INPUT FROM ABS CPI WHEN ACTUAL BECOMES AVAILABLE
C33: 2016–17 | D33: 2017–18 | E33: 2018–19 | F33: 2019–20 | G33: 2020–21 | H33: 2021–22
B34: Annual CPI | C34: 0.01828153565 | D34: 0.01885098743 | E34: 0.01674008811 | F34: 0.006932409012 | G34: 0.03012048193 | H34: 0.02399804305
C36: 2017-18 | D36: 2018-19 | E36: 2019-20 | F36: 2020-21 | G36: 2021-22
B37: X-factor rerun on debt update | C37: 0.01106195025 | D37: 0.01083586346 | E37: 0.01184066142 | F37: 0.01643141161 | G37: 0.01513166574
C39: 2017–18 | D39: 2018–19 | E39: 2019–20 | F39: 2020–21 | G39: 2021–22
B40: Annual Revenue | C40: 534769514.8 | D40: 538645297.5 | E40: 542301146.6 | F40: 542319375.1 | G40: 537815870.6
B42: Calendar year revene | C42: Q2-Q4 2017 | D42: 2018 | E42: 2019 | F42: 2020 | G42: 2021 | H42: Q1 2022
B43: Revenue | C43: 401077136.1 | D43: 537676351.9 | E43: 541387184.4 | F43: 542314818 | G43: 538941746.8 | H43: 134453967.7
B45: Other inputs
B46: Assessment Period | C46: Q1 2022
B47: Financial year to affect revenue: | C47: 2023/24
B48: Date prepared:
B49: Revision date:

Sheet 2022 Q2-4
I1: Performance | L1: Number of events pa - 2022 | Q1: Number of events pa - 2021
B2: Average circuit outage rate (%) | C2: Floor | D2: Target | E2: Cap | F2: Weighting | H2: Unit | I2: without exclusions | J2: with exclusions | L2: without exclusions | M2: with exclusions | N2: exclusions | O2: No. of defined circuits | Q2: without exclusions | R2: with exclusions | S2: exclusions | T2: No. of defined circuits
A3: S1 | B3: line outage - fault | C3: 22.37 | D3: 17.09 | E3: 12.43 | F3: 0.2 | H3: average circuit outage rate | I3: 16.26984127 | J3: 11.50793651 | L3: 10 | M3: 6 | N3: 4 | O3: 126 | Q3: 31 | R3: 23 | S3: 8 | T3: 126
A4: S2 | B4: transformer outage - fault | C4: 18.8 | D4: 11.97 | E4: 6.49 | F4: 0.2 | H4: average circuit outage rate | I4: 14.28571429 | J4: 13.49206349 | L4: 9 | M4: 9 | N4: 0 | O4: 126 | Q4: 27 | R4: 25 | S4: 2 | T4: 126
A5: S3 | B5: reactive plant - fault | C5: 30.43 | D5: 20.67 | E5: 14.9 | F5: 0.1 | H5: average circuit outage rate | I5: 11.40873016 | J5: 11.40873016 | L5: 1 | M5: 1 | N5: 0 | O5: 72 | Q5: 15 | R5: 15 | S5: 0 | T5: 70
A6: S4 | B6: line outage - forced | C6: 20.74 | D6: 10.14 | E6: 3.82 | F6: 0.1 | H6: average circuit outage rate | I6: 28.96825397 | J6: 15.47619048 | L6: 7 | M6: 7 | N6: 0 | O6: 126 | Q6: 66 | R6: 32 | S6: 34 | T6: 126
A7: S5 | B7: transformer outage - forced | C7: 15.88 | D7: 11.97 | E7: 7.54 | F7: 0.1 | H7: average circuit outage rate | I7: 12.3015873 | J7: 9.920634921 | L7: 10 | M7: 8 | N7: 2 | O7: 126 | Q7: 21 | R7: 17 | S7: 4 | T7: 126
A8: S6 | B8: reactive plant - forced | C8: 34.66 | D8: 27.78 | E8: 19.65 | F8: 0.05 | H8: average circuit outage rate | I8: 6.388888889 | J8: 5.694444444 | L8: 2 | M8: 1 | N8: 1 | O8: 72 | Q8: 7 | R8: 7 | S8: 0 | T8: 70
B9: Loss of supply event frequency* | K9: exclusions
A10: S7 | B10: >0.05 system minutes | C10: 3 | D10: 1 | E10: 0 | F10: 0.15 | H10: number of events per annum | I10: 2 | J10: 2 | K10: 0
A11: S8 | B11: >0.3 system minutes | C11: 2 | D11: 1 | E11: 0 | F11: 0.15 | H11: number of events per annum | I11: 0 | J11: 0 | K11: 0
B13: Average outage duration
A14: S9 | B14: Average outage duration | C14: 87.2 | D14: 45.6 | E14: 10.2 | F14: 0.2 | H14: Average outage duration | I14: 38.25 | J14: 38.25 | L14: number of LOS events | M14: 2 | N14: 2 | O14: 0 | Q14: 2 | R14: 2 | S14: 0
L15: Aggregate LOS minutes | M15: 79 | N15: 79 | O15: 0 | Q15: 74 | R15: 74 | S15: 0
B16: Proper operation of equipment
A17: S10 | B17: failure of protection system | C17: 40 | D17: 31 | E17: 22 | F17: 0 | H17: number of events per annum | I17: 3
A18: S11 | B18: Material failure of SCADA | C18: 3 | D18: 1 | E18: 0 | F18: 0 | H18: number of events per annum | I18: 1
A19: S12 | B19: Incorrect operational isolation of | C19: 11 | D19: 6 | E19: 3 | F19: 0 | H19: number of events per annum | I19: 0
B21: TNSP | C21: AusNet Services | I21: Adjust Loss of supply event frequency
B22: STPIS version | C22: October, 2015 | I22: >0.05 system minutes | J22: 0 | K22: 1 | L22: 4
B23: Regulatory Determination | C23: 2022-27 | I23: >0.3 system minutes | J23: 0 | K23: 1 | L23: 2
B24: Base Year Allowed Revenue | C24: 570717445.9
B25: Base Year | C25: 2021/2022
B26: Commencement of regulatory year | C26: 2022-04-01
B27: X factor | C27: 0.01328982931
B28: Forecast CPI - Final Decision | C28: 0.02449951148
C30: 2022-09-01 | D30: 2023-09-01 | E30: 2024-09-01 | F30: 2025-09-01 | G30: 2026-09-01 | H30: 2027-09-01
B31: Actual CPI | C31: 128.4
B32: NEEDS TO BE INPUT FROM ABS CPI WHEN ACTUAL BECOMES AVAILABLE
C33: 2021/22 | D33: 2022/23 | E33: 2023/24 | F33: 2024/25 | G33: 2025/26 | H33: 2026/27
B34: Annual CPI | C34: 0.02449951148 | D34: 0.02449951148 | E34: 0.02449951148 | F34: 0.02449951148 | G34: 0.02449951148 | H34: 0.02449951148
C36: 2022/23 | D36: 2023/24 | E36: 2024/25 | F36: 2025/26 | G36: 2026/27
B37: X-factor rerun on debt update | C37: 0.01328982931
C39: 2022/23 | D39: 2023/24 | E39: 2024/25 | F39: 2025/26 | G39: 2026/27
B40: Annual Revenue | C40: 570717445.9 | D40: 584699744.6 | E40: 599024602.7 | F40: 613700412.8 | G40: 628735773.1
B42: Calendar year revene | C42: Q2-Q4 2022 | D42: 2023 | E42: 2024 | F42: 2025 | G42: 2026 | H42: Q1 2027
B43: Revenue | C43: 428038084.5 | D43: 581204169.9 | E43: 595443388.1 | F43: 610031460.3 | G43: 624976933 | H43: 157183943.3
B45: Other inputs
B46: Assessment Period | C46: Q2-Q4 2022
B47: Financial year to affect revenue: | C47: 2023/24
B48: Date prepared:
B49: Revision date:

Sheet 2021
I1: Performance | L1: Number of events pa - 2021 | Q1: Number of events pa - 2020
B2: Average circuit outage rate (%) | C2: Floor | D2: Target | E2: Cap | F2: Weighting | H2: Unit | I2: without exclusions | J2: with exclusions | L2: without exclusions | M2: with exclusions | N2: exclusions | O2: No. of defined circuits | Q2: without exclusions | R2: with exclusions | S2: exclusions | T2: No. of defined circuits
A3: S1 | B3: line outage - fault | C3: 33.8 | D3: 25.4 | E3: 16 | F3: 0.2 | H3: average circuit outage rate | I3: 24.7015873 | J3: 17.92698413 | L3: 31 | M3: 23 | N3: 8 | O3: 126 | Q3: 31 | R3: 22 | S3: 9 | T3: 125
A4: S2 | B4: transformer outage - fault | C4: 31.8 | D4: 20.3 | E4: 9.2 | F4: 0.2 | H4: average circuit outage rate | I4: 19.30803571 | J4: 17.73313492 | L4: 27 | M4: 25 | N4: 2 | O4: 126 | Q4: 22 | R4: 20 | S4: 2 | T4: 128
A5: S3 | B5: reactive plant - fault | C5: 61.2 | D5: 34.3 | E5: 18.4 | F5: 0.1 | H5: average circuit outage rate | I5: 21.98189135 | J5: 21.98189135 | L5: 15 | M5: 15 | N5: 0 | O5: 70 | Q5: 16 | R5: 16 | S5: 0 | T5: 71
A6: S4 | B6: line outage - forced | C6: 17.1 | D6: 15 | E6: 12.3 | F6: 0.1 | H6: average circuit outage rate | I6: 60.59047619 | J6: 16.2984127 | L6: 66 | M6: 32 | N6: 34 | O6: 126 | Q6: 86 | R6: 9 | S6: 77 | T6: 125
A7: S5 | B7: transformer outage - forced | C7: 14.4 | D7: 10.4 | E7: 6.1 | F7: 0.1 | H7: average circuit outage rate | I7: 16.53645833 | J7: 12.60540675 | L7: 21 | M7: 17 | N7: 4 | O7: 126 | Q7: 21 | R7: 15 | S7: 6 | T7: 128
A8: S6 | B8: reactive plant - forced | C8: 40.7 | D8: 30.9 | E8: 19.9 | F8: 0.05 | H8: average circuit outage rate | I8: 14.85915493 | J8: 14.85915493 | L8: 7 | M8: 7 | N8: 0 | O8: 70 | Q8: 14 | R8: 14 | S8: 0 | T8: 71
B9: Loss of supply event frequency* | K9: exclusions
A10: S7 | B10: >0.05 system minutes | C10: 5 | D10: 2 | E10: 0 | F10: 0.15 | H10: number of events per annum | I10: 0 | J10: 0 | K10: 0
A11: S8 | B11: >0.3 system minutes | C11: 2 | D11: 1 | E11: 0 | F11: 0.15 | H11: number of events per annum | I11: 0 | J11: 0 | K11: 0
B13: Average outage duration
A14: S9 | B14: Average outage duration | C14: 334.2 | D14: 75.1 | E14: 3.4 | F14: 0.2 | H14: Average outage duration | I14: 47.3 | J14: 47.3 | L14: number of LOS events | M14: 2 | N14: 2 | O14: 0 | Q14: 5 | R14: 5 | S14: 0
L15: Aggregate LOS minutes | M15: 74 | N15: 74 | O15: 0 | Q15: 288 | R15: 288 | S15: 0
B16: Proper operation of equipment
A17: S10 | B17: failure of protection system | C17: 42 | D17: 32 | E17: 23 | F17: 0 | H17: number of events per annum | I17: 16 | J17: 16 | K17: 0
A18: S11 | B18: Material failure of SCADA | C18: 4 | D18: 1.8 | E18: 0 | F18: 0 | H18: number of events per annum | I18: 3 | J18: 3 | K18: 0
A19: S12 | B19: Incorrect operational isolation of | C19: 10 | D19: 5.6 | E19: 2 | F19: 0 | H19: number of events per annum | I19: 3 | J19: 3 | K19: 0
B21: TNSP | C21: AusNet Services
B22: STPIS version | C22: October, 2015
B23: Regulatory Determination | C23: 2017/18 - 2021/22
B24: Base Year Allowed Revenue | C24: 534769514.8
B25: Base Year | C25: 2017-18
B26: Commencement of regulatory year | C26: 2017-04-01
B27: X factor | C27: 0.01106195025
B28: Forecast CPI - Final Decision | C28: 0.02399804305
C30: 2016-09-01 | D30: 2017-09-01 | E30: 2018-09-01 | F30: 2019-09-01 | G30: 2020-09-01 | H30: 2021-09-01
B31: Actual CPI | C31: 109.4 | D31: 111.4 | E31: 113.5 | F31: 115.4 | G31: 116.2 | H31: 119.7
B32: NEEDS TO BE INPUT FROM ABS CPI WHEN ACTUAL BECOMES AVAILABLE
C33: 2016–17 | D33: 2017–18 | E33: 2018–19 | F33: 2019–20 | G33: 2020–21 | H33: 2021–22
B34: Annual CPI | C34: 0.01828153565 | D34: 0.01885098743 | E34: 0.01674008811 | F34: 0.006932409012 | G34: 0.03012048193 | H34: 0.02399804305
C36: 2017-18 | D36: 2018-19 | E36: 2019-20 | F36: 2020-21 | G36: 2021-22
B37: X-factor rerun on debt update | C37: 0.01106195025 | D37: 0.01083586346 | E37: 0.01184066142 | F37: 0.01643141161 | G37: 0.0191
C39: 2017–18 | D39: 2018–19 | E39: 2019–20 | F39: 2020–21 | G39: 2021–22
B40: Annual Revenue | C40: 534769514.8 | D40: 538645297.5 | E40: 542301146.6 | F40: 542319375.1 | G40: 535648846.8
B42: Calendar year revene | C42: Q2-Q4 2017 | D42: 2018 | E42: 2019 | F42: 2020 | G42: 2021 | H42: Q1 2022
B43: Revenue | C43: 401077136.1 | D43: 537676351.9 | E43: 541387184.4 | F43: 542314818 | G43: 537316478.9 | H43: 133912211.7
B45: Other inputs
B46: Assessment Period | C46: 2021
B47: Financial year to affect revenue: | C47: 2022/23
B48: Date prepared:
B49: Revision date:

Sheet 2020
I1: Performance | L1: Number of events pa - 2020 | Q1: Number of events pa - 2019
B2: Average circuit outage rate (%) | C2: Floor | D2: Target | E2: Cap | F2: Weighting | H2: Unit | I2: without exclusions | J2: with exclusions | L2: without exclusions | M2: with exclusions | N2: exclusions | O2: No. of defined circuits | Q2: without exclusions | R2: with exclusions | S2: exclusions | T2: No. of defined circuits
A3: S1 | B3: line outage - fault | C3: 33.8 | D3: 25.4 | E3: 16 | F3: 0.2 | H3: average circuit outage rate | I3: 21.7495935 | J3: 15.30406504 | L3: 31 | M3: 22 | N3: 9 | O3: 125 | Q3: 23 | R3: 16 | S3: 7 | T3: 123
A4: S2 | B4: transformer outage - fault | C4: 31.8 | D4: 20.3 | E4: 9.2 | F4: 0.2 | H4: average circuit outage rate | I4: 12.109375 | J4: 10.9375 | L4: 22 | M4: 20 | N4: 2 | O4: 128 | Q4: 9 | R4: 8 | S4: 1 | T4: 128
A5: S3 | B5: reactive plant - fault | C5: 61.2 | D5: 34.3 | E5: 18.4 | F5: 0.1 | H5: average circuit outage rate | I5: 27.46478873 | J5: 26.05633803 | L5: 16 | M5: 16 | N5: 0 | O5: 71 | Q5: 23 | R5: 21 | S5: 2 | T5: 71
A6: S4 | B6: line outage - forced | C6: 17.1 | D6: 15 | E6: 12.3 | F6: 0.1 | H6: average circuit outage rate | I6: 63.66829268 | J6: 6.03902439 | L6: 86 | M6: 9 | N6: 77 | O6: 125 | Q6: 72 | R6: 6 | S6: 66 | T6: 123
A7: S5 | B7: transformer outage - forced | C7: 14.4 | D7: 10.4 | E7: 6.1 | F7: 0.1 | H7: average circuit outage rate | I7: 14.0625 | J7: 11.71875 | L7: 21 | M7: 15 | N7: 6 | O7: 128 | Q7: 15 | R7: 15 | S7: 0 | T7: 128
A8: S6 | B8: reactive plant - forced | C8: 40.7 | D8: 30.9 | E8: 19.9 | F8: 0.05 | H8: average circuit outage rate | I8: 23.23943662 | J8: 22.53521127 | L8: 14 | M8: 14 | N8: 0 | O8: 71 | Q8: 19 | R8: 18 | S8: 1 | T8: 71
B9: Loss of supply event frequency* | K9: exclusions
A10: S7 | B10: >0.05 system minutes | C10: 5 | D10: 2 | E10: 0 | F10: 0.15 | H10: number of events per annum | I10: 3 | J10: 3 | K10: 0
A11: S8 | B11: >0.3 system minutes | C11: 2 | D11: 1 | E11: 0 | F11: 0.15 | H11: number of events per annum | I11: 1 | J11: 1 | K11: 0
B13: Average outage duration
A14: S9 | B14: Average outage duration | C14: 334.2 | D14: 75.1 | E14: 3.4 | F14: 0.2 | H14: Average outage duration | I14: 77.63333333 | J14: 72.3 | L14: number of LOS events | M14: 5 | N14: 5 | O14: 0 | Q14: 3 | R14: 2 | S14: 1
L15: Aggregate LOS minutes | M15: 288 | N15: 288 | O15: 0 | Q15: 293 | R15: 174 | S15: 119
B16: Proper operation of equipment
A17: S10 | B17: failure of protection system | C17: 42 | D17: 32 | E17: 23 | F17: 0 | H17: number of events per annum | I17: 24 | J17: 23 | K17: 1
A18: S11 | B18: Material failure of SCADA | C18: 4 | D18: 1.8 | E18: 0 | F18: 0 | H18: number of events per annum | I18: 0 | J18: 0 | K18: 0
A19: S12 | B19: Incorrect operational isolation of | C19: 10 | D19: 5.6 | E19: 2 | F19: 0 | H19: number of events per annum | I19: 6 | J19: 6 | K19: 0
B21: TNSP | C21: AusNet Services
B22: STPIS version | C22: October, 2015
B23: Regulatory Determination | C23: 2017/18 - 2021/22
B24: Base Year Allowed Revenue | C24: 534769514.8
B25: Base Year | C25: 2017-18
B26: Commencement of regulatory year | C26: 2017-04-01
B27: X factor | C27: 0.01106195025
B28: Forecast CPI - Final Decision | C28: 0.02399804305
C30: 2016-09-01 | D30: 2017-09-01 | E30: 2018-09-01 | F30: 2019-09-01 | G30: 2020-09-01 | H30: 2021-09-01
B31: Actual CPI | C31: 109.4 | D31: 111.4 | E31: 113.5 | F31: 115.4 | G31: 116.2
B32: NEEDS TO BE INPUT FROM ABS CPI WHEN ACTUAL BECOMES AVAILABLE
C33: 2016–17 | D33: 2017–18 | E33: 2018–19 | F33: 2019–20 | G33: 2020–21 | H33: 2021–22
B34: Annual CPI | C34: 0.01828153565 | D34: 0.01885098743 | E34: 0.01674008811 | F34: 0.006932409012 | G34: 0.02399804305 | H34: 0.02399804305
C36: 2017-18 | D36: 2018-19 | E36: 2019-20 | F36: 2020-21 | G36: 2021-22
B37: X-factor rerun on debt update | C37: 0.01106195025 | D37: 0.01083586346 | E37: 0.01184066142 | F37: 0.01643141161 | G37: 0.0112
C39: 2017–18 | D39: 2018–19 | E39: 2019–20 | F39: 2020–21 | G39: 2021–22
B40: Annual Revenue | C40: 534769514.8 | D40: 538645297.5 | E40: 542301146.6 | F40: 542319375.1 | G40: 539962870.6
B42: Calendar year revene | C42: Q2-Q4 2017 | D42: 2018 | E42: 2019 | F42: 2020 | G42: 2021 | H42: Q1 2022
B43: Revenue | C43: 401077136.1 | D43: 537676351.9 | E43: 541387184.4 | F43: 542314818 | G43: 540551996.7 | H43: 134990717.6
B45: Other inputs
B46: Assessment Period | C46: 2020
B47: Financial year to affect revenue: | C47: 2021/22
B48: Date prepared:
B49: Revision date:
